Amount,Supplier,Service,Division,Cost Centre,Cost Code,Expenditure Category,Date Paid,Type,Transaction Reference,Dept
"7,056,793.20",Nottinghamshire County Council,Collection Fund,Precepting Authorities,Notts Cc Precept & Ndr Share,5930,Precept Paid,15/10/2018,Collection Fund Accounts,86199,FINANCE & CORPORATE SERVICES
"7,056,793.20",Nottinghamshire County Council,Collection Fund,Precepting Authorities,Notts Cc Precept & Ndr Share,5930,Precept Paid,19/11/2018,Collection Fund Accounts,86200,FINANCE & CORPORATE SERVICES
"7,056,793.20",Nottinghamshire County Council,Collection Fund,Precepting Authorities,Notts Cc Precept & Ndr Share,5930,Precept Paid,20/12/2018,Collection Fund Accounts,86201,FINANCE & CORPORATE SERVICES
"829,009.00",Notts Police & Crime Commissioner,Collection Fund,Precepting Authorities,Notts Police Precept & Ndr,5932,Precept Paid,15/10/2018,Collection Fund Accounts,84894,FINANCE & CORPORATE SERVICES
"829,009.00",Notts Police & Crime Commissioner,Collection Fund,Precepting Authorities,Notts Police Precept & Ndr,5932,Precept Paid,19/11/2018,Collection Fund Accounts,84895,FINANCE & CORPORATE SERVICES
"829,009.00",Notts Police & Crime Commissioner,Collection Fund,Precepting Authorities,Notts Police Precept & Ndr,5932,Precept Paid,20/12/2018,Collection Fund Accounts,84896,FINANCE & CORPORATE SERVICES
"456,471.18",Nhs England,Liabilities,Long Term Liabilities,Cotgrave Colliery - Other,6740,Balance Sheet Exp In The Year,03/10/2018,Balance Sheet Exp In The Year,89927,FINANCE & CORPORATE SERVICES
"356,501.00",Notts Fire And Rescue Service,Collection Fund,Precepting Authorities,Notts Fire Precept & Ndr,5933,Precept Paid,15/10/2018,Collection Fund Accounts,84882,FINANCE & CORPORATE SERVICES
"356,501.00",Notts Fire And Rescue Service,Collection Fund,Precepting Authorities,Notts Fire Precept & Ndr,5933,Precept Paid,19/11/2018,Collection Fund Accounts,84883,FINANCE & CORPORATE SERVICES
"356,501.00",Notts Fire And Rescue Service,Collection Fund,Precepting Authorities,Notts Fire Precept & Ndr,5933,Precept Paid,20/12/2018,Collection Fund Accounts,84884,FINANCE & CORPORATE SERVICES
"133,488.92",Thomas Bow Ltd,Capital Expenditure,Transformation & Innovation,Arena Car Park,0336,Contractors-Third Party,12/10/2018,Third Party Payments,90088,CAPITAL
"132,444.63",Fosse Medicare Ltd,Capital Expenditure,Transformation & Innovation,Cotgrave Masterplan,0303,Legal & Professional Services,19/10/2018,Supplies & Services,90312,CAPITAL
"132,398.18",Streetwise Environmental Ltd,Neighbourhoods,Waste & Fleet Management,Streetwise Contract,8301,Contractors-Third Party,23/10/2018,Third Party Payments,90169,NEIGHBOURHOODS
"132,398.18",Streetwise Environmental Ltd,Neighbourhoods,Waste & Fleet Management,Streetwise Contract,8301,Contractors-Third Party,23/11/2018,Third Party Payments,91064,NEIGHBOURHOODS
"132,398.18",Streetwise Environmental Ltd,Neighbourhoods,Waste & Fleet Management,Streetwise Contract,8301,Contractors-Third Party,20/12/2018,Third Party Payments,91905,NEIGHBOURHOODS
"123,945.50",Trent Valley Internal Drainage Board,Finance & Corporate Services,Financial Services,Internal Drainage Board Levies,1047,Other Services,28/11/2018,Supplies & Services,84887,FINANCE & CORPORATE SERVICES
"98,432.60",Thomas Bow Ltd,Capital Expenditure,Transformation & Innovation,Arena Car Park,0336,Contractors-Third Party,29/10/2018,Third Party Payments,90526,CAPITAL
"81,983.43",Northstone (Ni) Limited,Capital Expenditure,Neighbourhoods,Arena Development,0415,Contractors-Third Party,15/10/2018,Third Party Payments,89752,CAPITAL
"68,688.66",Nottinghamshire County Council,Neighbourhoods,Leisure Contracts & Car Parks,East Leake Leisure Centre,1700,Olas - Notts County Council,02/11/2018,Third Party Payments,90700,FINANCE & CORPORATE SERVICES
"58,000.00",Dales Sports Surfaces Ltd,Capital Expenditure,Neighbourhoods,Indoor Bowls Surface,0421,Legal & Professional Services,15/10/2018,Supplies & Services,89656,CAPITAL
"55,458.36",Alpha Heating (Chesterfield) Ltd,Capital Expenditure,Transformation & Innovation,Property Heating Upgrades,0351,Contractors-Third Party,19/11/2018,Third Party Payments,91111,CAPITAL
"55,000.00",Trent Bridge Community Trust,Communities,Community Development,Community Development,1581,Projects & Activities,20/12/2018,Supplies & Services,92134,COMMUNITIES
"55,000.00",Trent Bridge Community Trust,Communities,Community Development,Community Development,1581,Projects & Activities,20/12/2018,Supplies & Services,92135,COMMUNITIES
"53,305.81",Alpha Heating (Chesterfield) Ltd,Capital Expenditure,Transformation & Innovation,Property Heating Upgrades,0351,Contractors-Third Party,14/12/2018,Third Party Payments,91934,CAPITAL
"47,230.97",Thomas Bow Ltd,Capital Expenditure,Transformation & Innovation,Arena Car Park,0336,Contractors-Third Party,20/12/2018,Third Party Payments,91894,CAPITAL
"37,055.26",As Enterprises Limited,Capital Expenditure,Transformation & Innovation,Cotgrave Masterplan,0303,Legal & Professional Services,20/12/2018,Supplies & Services,92194,CAPITAL
"36,252.34",Nottingham City Council,Neighbourhoods,Waste & Fleet Management,Garage,8700,Contractors-Transport,12/10/2018,Transport Related Expenditure,89996,NEIGHBOURHOODS
"32,860.50",Trent Bridge Community Trust,Communities,Community Development,Young,1048,Projects & Activities,16/10/2018,Supplies & Services,89909,COMMUNITIES
"32,860.50",Trent Bridge Community Trust,Communities,Community Development,Young,1048,Projects & Activities,19/10/2018,Supplies & Services,89908,COMMUNITIES
"31,271.62",Demco Interiors,Capital Expenditure,Transformation & Innovation,Multi Service Centre,0348,Legal & Professional Services,09/11/2018,Supplies & Services,90447,CAPITAL
"29,708.70",Nottingham City Council,Neighbourhoods,Waste & Fleet Management,Garage,8700,Contractors-Transport,14/12/2018,Transport Related Expenditure,91860,NEIGHBOURHOODS
"26,526.69",Nhs England,Liabilities,Long Term Liabilities,18 P'Tree Rd - Hea 07/02056,6321,Balance Sheet Exp In The Year,03/10/2018,Balance Sheet Exp In The Year,89927,COMMUNITIES
"25,367.05",Certas Energy T/A Pace Fuelcare,Neighbourhoods,Waste & Fleet Management,Fleet,8600,Diesel,23/10/2018,Transport Related Expenditure,90167,NEIGHBOURHOODS
"25,285.00",Trent Valley Plumbing & Build,Capital Expenditure,Neighbourhoods,Disabled Facilities Grant,0332,Grants,07/12/2018,Supplies & Services,91567,CAPITAL
"25,000.00",Nottingham County Council,Communities,Community Development,Tour Of Britain 2018,1583,Olas - Notts County Council,12/10/2018,Third Party Payments,89722,COMMUNITIES
"24,950.88",Certas Energy T/A Pace Fuelcare,Neighbourhoods,Waste & Fleet Management,Fleet,8600,Diesel,02/11/2018,Transport Related Expenditure,90638,NEIGHBOURHOODS
"24,646.35",Certas Energy T/A Pace Fuelcare,Neighbourhoods,Waste & Fleet Management,Fleet,8600,Diesel,21/11/2018,Transport Related Expenditure,91197,NEIGHBOURHOODS
"24,014.09",Certas Energy T/A Pace Fuelcare,Neighbourhoods,Waste & Fleet Management,Fleet,8600,Diesel,04/12/2018,Transport Related Expenditure,91581,NEIGHBOURHOODS
"23,239.00",Apw (Nottm) Ltd,Capital Expenditure,Neighbourhoods,Disabled Facilities Grant,0332,Grants,02/11/2018,Supplies & Services,90635,CAPITAL
"22,891.38",Nottingham City Council,Neighbourhoods,Waste & Fleet Management,Garage,8700,Contractors-Transport,02/11/2018,Transport Related Expenditure,90648,NEIGHBOURHOODS
"18,539.97",Nottingham City Council,Neighbourhoods,Waste & Fleet Management,Garage,8700,Contractors-Transport,12/10/2018,Transport Related Expenditure,89997,NEIGHBOURHOODS
"18,231.30",Telefonica Uk Limited,Capital Expenditure,Transformation & Innovation,Ict Replacement Programme,0592,Computer Hardware,29/10/2018,Supplies & Services,90045,CAPITAL
"17,488.55",Gee Tee Building Services,Capital Expenditure,Neighbourhoods,Disabled Facilities Grant,0332,Grants,29/10/2018,Supplies & Services,90545,CAPITAL
"17,310.00",Apw (Nottm) Ltd,Capital Expenditure,Neighbourhoods,Disabled Facilities Grant,0332,Grants,23/11/2018,Supplies & Services,91275,CAPITAL
"14,500.00",Gedling Borough Council,Finance & Corporate Services,Financial Services,Financial Services,4705,Contractors-Supplies & Servs,04/12/2018,Supplies & Services,91453,FINANCE & CORPORATE SERVICES
"13,228.80",Craemer Uk Ltd,Capital Expenditure,Neighbourhoods,Wheeled Bins,0310,Other Equipment/Materials,20/12/2018,Supplies & Services,92068,CAPITAL
"12,994.80",Craemer Uk Ltd,Capital Expenditure,Neighbourhoods,Wheeled Bins,0310,Other Equipment/Materials,20/12/2018,Supplies & Services,92069,CAPITAL
"12,917.00",Xpress Software Solutions Ltd,Transformation,Ict,It Rechargeable Costs,4722,Maintenance Contracts - S&S,23/10/2018,Supplies & Services,89149,TRANSFORMATION
"12,371.42",Ener -G Combined Power Limited,Transformation,Property Services,Arena Civic Centre,4718,Service Maintenance Contracts,07/12/2018,Premises Related Expenditure,88967,TRANSFORMATION
"12,235.50",Daisy Communications Ltd,Transformation,Ict,Telephones,4870,Telephone Rental,19/11/2018,Supplies & Services,91055,TRANSFORMATION
"12,090.00",Craemer Uk Ltd,Capital Expenditure,Neighbourhoods,Wheeled Bins,0310,Other Equipment/Materials,21/11/2018,Supplies & Services,90573,CAPITAL
"12,000.00",Freeths Llp,Capital Expenditure,Transformation & Innovation,Multi Service Centre,0348,Legal & Professional Services,07/12/2018,Supplies & Services,91705,CAPITAL
"11,900.00",Fixfire,Capital Expenditure,Neighbourhoods,Egc Fire Alarm System,0422,Other Miscellaneous Expenses,14/12/2018,Supplies & Services,91499,CAPITAL
"11,191.55",Northgate Public Services (Uk) Ltd,Transformation,Ict,It Rechargeable Costs,4722,Maintenance Contracts - S&S,09/11/2018,Supplies & Services,90474,TRANSFORMATION
"10,890.00",Daisy Communications Ltd,Transformation,Ict,Telephones,4870,Maintenance Contracts - S&S,19/11/2018,Supplies & Services,91055,TRANSFORMATION
"10,767.14",Capita Software Services,Finance & Corporate Services,Revenues & Benefits,Housing Benefits Admin.,1140,Software,07/12/2018,Supplies & Services,91704,FINANCE & CORPORATE SERVICES
"10,600.00",P J Lilley Limited,Capital Expenditure,Neighbourhoods,Disabled Facilities Grant,0332,Grants,09/11/2018,Supplies & Services,90890,CAPITAL
"10,394.98",Perrys East Midlands Ltd,Capital Expenditure,Neighbourhoods,Vehicle Replacement,0680,Vehicles Acquisition,19/10/2018,Supplies & Services,89984,CAPITAL
"10,370.00",B.M.B Builders & Plumbers,Capital Expenditure,Neighbourhoods,Disabled Facilities Grant,0332,Grants,09/11/2018,Supplies & Services,90891,CAPITAL
"9,934.10",Toot Hill School,Neighbourhoods,Leisure Contracts & Car Parks,Leisure Management Contract,1795,Electricity,09/11/2018,Premises Related Expenditure,86931,FINANCE & CORPORATE SERVICES
"9,375.00",Idox Software Limited,Capital Expenditure,Transformation & Innovation,Applications/Apps,0605,Software,20/12/2018,Supplies & Services,91574,CAPITAL
"9,213.78",Toot Hill School,Neighbourhoods,Leisure Contracts & Car Parks,Leisure Management Contract,1795,Gas,09/11/2018,Premises Related Expenditure,86931,FINANCE & CORPORATE SERVICES
"9,135.00",Rsm,Finance & Corporate Services,Financial Services,Internal Audit,4708,Legal & Professional Services,09/11/2018,Supplies & Services,90532,FINANCE & CORPORATE SERVICES
"8,827.00",Hill Bros (Nottingham) Ltd,Capital Expenditure,Neighbourhoods,Disabled Facilities Grant,0332,Grants,29/10/2018,Supplies & Services,90546,CAPITAL
"8,718.00",Virgin Media Business,Transformation,Ict,It Rechargeable Costs,4722,Maintenance Contracts - S&S,19/11/2018,Supplies & Services,90920,TRANSFORMATION
"8,279.00",Trent Valley Plumbing & Build,Capital Expenditure,Neighbourhoods,Disabled Facilities Grant,0332,Grants,18/12/2018,Supplies & Services,91932,CAPITAL
"8,167.50",Lodge Tyre Co.Ltd,Neighbourhoods,Waste & Fleet Management,Waste Collection,8403,Tyres,29/10/2018,Transport Related Expenditure,90029,NEIGHBOURHOODS
"8,107.12",Toot Hill School,Neighbourhoods,Leisure Contracts & Car Parks,Leisure Management Contract,1795,Electricity,12/11/2018,Premises Related Expenditure,90707,FINANCE & CORPORATE SERVICES
"7,948.00",Mazars Llp,Finance & Corporate Services,Financial Services,Corporate Management,4895,External Audit Fee,02/11/2018,Supplies & Services,90349,FINANCE & CORPORATE SERVICES
"7,899.00",Trent Valley Plumbing & Build,Capital Expenditure,Neighbourhoods,Disabled Facilities Grant,0332,Grants,16/11/2018,Supplies & Services,91079,CAPITAL
"7,789.00",A R Signs Ltd,Finance & Corporate Services,"Performance, Repn & Comms",Performance And Reputation,4710,External Printing,19/11/2018,Supplies & Services,90676,FINANCE & CORPORATE SERVICES
"7,100.00",A R Signs Ltd,Finance & Corporate Services,"Performance, Repn & Comms",Performance And Reputation,4710,External Printing,26/11/2018,Supplies & Services,90875,FINANCE & CORPORATE SERVICES
"7,097.00",Palmers Kitchens Bedrooms & Bathrooms Ltd,Capital Expenditure,Neighbourhoods,Disabled Facilities Grant,0332,Grants,14/12/2018,Supplies & Services,91866,CAPITAL
"7,025.00",Advanced Business Solutions,Capital Expenditure,Transformation & Innovation,Applications/Apps,0605,Software,29/10/2018,Supplies & Services,90255,CAPITAL
"6,325.00",Licence Check Ltd,Neighbourhoods,Environmental Health,Hackney Carriage/Private Hire,1031,Other Equipment/Materials,23/10/2018,Supplies & Services,89986,NEIGHBOURHOODS
"6,299.86",Tunstall Response Ltd,Neighbourhoods,Strategic Housing,Home Alarms,1137,Other Services,09/11/2018,Supplies & Services,90355,NEIGHBOURHOODS
"6,168.75",Via East Midlands,Communities,Local Development Framework,Land Charges,1033,Other Services,02/11/2018,Supplies & Services,90550,COMMUNITIES
"5,800.00",East Leake Parish Council,Communities,Community Development,Environmental Promotion,1590,Legal & Professional Services,20/12/2018,Supplies & Services,92133,COMMUNITIES
"5,736.50",Lodge Tyre Co.Ltd,Neighbourhoods,Waste & Fleet Management,Waste Collection,8403,Tyres,04/12/2018,Transport Related Expenditure,91631,NEIGHBOURHOODS
"5,660.00",Visions Projects Limited,Transformation,Customer Services,Customer Services,4807,Contractors-Third Party,19/11/2018,Third Party Payments,91185,TRANSFORMATION
"5,625.00",Ade Regeneration,Transformation,Economic Regeneration,Economic Development,1887,Feasibility Study,29/10/2018,Supplies & Services,90540,TRANSFORMATION
"5,572.26",Fosse Medicare Ltd,Capital Expenditure,Transformation & Innovation,Cotgrave Masterplan,0303,Legal & Professional Services,14/12/2018,Supplies & Services,91963,CAPITAL
"5,394.84",Electoral Reform Services,Finance & Corporate Services,Democratic Services,Electoral Registration,1026,Telephone Response,19/10/2018,Supplies & Services,90242,FINANCE & CORPORATE SERVICES
"5,375.24",Yu Energy,Transformation,Property Services,Bridgford Hall,1883,Gas,23/11/2018,Premises Related Expenditure,90871,TRANSFORMATION
"5,314.05",Synectics Solutions Limited,Finance & Corporate Services,Revenues & Benefits,Council Tax,1045,Other Miscellaneous Expenses,19/11/2018,Supplies & Services,90097,FINANCE & CORPORATE SERVICES
"5,262.88",Toot Hill School,Neighbourhoods,Leisure Contracts & Car Parks,Leisure Management Contract,1795,Gas,12/11/2018,Premises Related Expenditure,90707,FINANCE & CORPORATE SERVICES
"5,217.94",The South Wolds Academy And Sixth Form,Neighbourhoods,Leisure Contracts & Car Parks,Leisure Management Contract,1795,Premises Rents,19/10/2018,Premises Related Expenditure,89900,FINANCE & CORPORATE SERVICES
"5,168.00",Mk Taylor Building Services,Capital Expenditure,Neighbourhoods,Disabled Facilities Grant,0332,Grants,12/10/2018,Supplies & Services,89943,CAPITAL
"5,163.00",Virgin Media Business,Transformation,Ict,It Rechargeable Costs,4722,Maintenance Contracts - S&S,19/11/2018,Supplies & Services,90892,TRANSFORMATION
"5,082.00",Kingkraft,Capital Expenditure,Neighbourhoods,Disabled Facilities Grant,0332,Grants,07/12/2018,Supplies & Services,91568,CAPITAL
"5,058.77",Parkwood Community Leisure,Transformation,Property Services,Arena Civic Centre,4718,Electricity,18/12/2018,Premises Related Expenditure,91714,TRANSFORMATION
"5,015.12",Bsp Consulting,Transformation,Property Services,Land Holdings,1884,Legal & Professional Services,28/11/2018,Supplies & Services,90703,TRANSFORMATION
"5,000.00",Friary Drop In,Neighbourhoods,Strategic Housing,Homeless B&B,1110,Grants,12/10/2018,Supplies & Services,88673,NEIGHBOURHOODS
"4,990.00",Cookson & Son,Capital Expenditure,Transformation & Innovation,Arena Car Park,0336,Responsive Works - Buildings,14/12/2018,Premises Related Expenditure,91628,CAPITAL
"4,985.00",Maltby & Company,Communities,Community Development,Bridgford Park,8927,Responsive Works - Buildings,19/10/2018,Premises Related Expenditure,90189,COMMUNITIES
"4,864.00",Team Netsol Limited,Transformation,Ict,It Rechargeable Costs,4722,Maintenance Contracts - S&S,14/12/2018,Supplies & Services,91972,TRANSFORMATION
"4,817.00",Kpmg Llp,Finance & Corporate Services,Financial Services,Corporate Management,4895,External Audit Fee,28/11/2018,Supplies & Services,91324,FINANCE & CORPORATE SERVICES
"4,731.00",Hill Bros (Nottingham) Ltd,Capital Expenditure,Neighbourhoods,Disabled Facilities Grant,0332,Grants,14/12/2018,Supplies & Services,91867,CAPITAL
"4,725.00",Rsm,Finance & Corporate Services,Financial Services,Internal Audit,4708,Legal & Professional Services,20/12/2018,Supplies & Services,92131,FINANCE & CORPORATE SERVICES
"4,700.80",Smoothwall Ltd,Transformation,Ict,It Rechargeable Costs,4722,Maintenance Contracts - S&S,23/10/2018,Supplies & Services,89981,TRANSFORMATION
"4,660.26",Toot Hill School,Neighbourhoods,Leisure Contracts & Car Parks,Leisure Management Contract,1795,Electricity,09/11/2018,Premises Related Expenditure,88147,FINANCE & CORPORATE SERVICES
"4,650.00",M.R.J.Faulks & Son Ltd,Communities,Community Development,Rushcliffe Country Park,1375,Maintenance Contracts - S&S,07/12/2018,Supplies & Services,91418,COMMUNITIES
"4,594.00",Creative Care Ltd,Capital Expenditure,Neighbourhoods,Disabled Facilities Grant,0332,Grants,21/11/2018,Supplies & Services,91162,CAPITAL
"4,580.46",Toot Hill School,Neighbourhoods,Leisure Contracts & Car Parks,Leisure Management Contract,1795,Electricity,09/11/2018,Premises Related Expenditure,89549,FINANCE & CORPORATE SERVICES
"4,542.71",The National Leaflet Company,Finance & Corporate Services,"Performance, Repn & Comms",Performance And Reputation,4710,Other Services,19/11/2018,Supplies & Services,91204,FINANCE & CORPORATE SERVICES
"4,531.25",Mti Technology Ltd,Transformation,Ict,It Rechargeable Costs,4722,Maintenance Contracts - S&S,12/10/2018,Supplies & Services,89021,TRANSFORMATION
"4,489.00",Virgin Media Business,Transformation,Ict,It Rechargeable Costs,4722,Maintenance Contracts - S&S,19/11/2018,Supplies & Services,79625,TRANSFORMATION
"4,486.86",Michael Page International Recruitment Ltd,Transformation,Property Services,Property Services,4713,Agency Staff,14/12/2018,Employee Related Expenditure,91849,TRANSFORMATION
"4,465.00",Dolphin Mobility East Mids Ltd,Capital Expenditure,Neighbourhoods,Disabled Facilities Grant,0332,Grants,12/10/2018,Supplies & Services,89897,CAPITAL
"4,335.70",Central Fire Systems Ltd,Neighbourhoods,Leisure Contracts & Car Parks,Leisure Management Contract,1795,Responsive Works - Buildings,14/12/2018,Premises Related Expenditure,91333,FINANCE & CORPORATE SERVICES
"4,324.68",Parkwood Community Leisure,Transformation,Property Services,Arena Civic Centre,4718,Electricity,29/10/2018,Premises Related Expenditure,90247,TRANSFORMATION
"4,236.00",Blachere Illumination Uk Ltd,Transformation,Economic Regeneration,West Bridgford Town Centre,1875,Other Services,19/11/2018,Supplies & Services,90883,TRANSFORMATION
"4,222.57",Broxtowe Borough Council,Neighbourhoods,Strategic Housing,Choice Based Lettings,1107,Partnership Workings,07/12/2018,Supplies & Services,91594,NEIGHBOURHOODS
"4,200.00",Commercial Surface Solutions Ltd,Neighbourhoods,Leisure Contracts & Car Parks,Car Parks,1900,Responsive Works - Buildings,02/11/2018,Premises Related Expenditure,90639,FINANCE & CORPORATE SERVICES
"4,163.00",Vinshire Plumbing & Heating Limited,Capital Expenditure,Communties,Warm Homes On Prescription,0337,Grants,16/11/2018,Supplies & Services,90465,CAPITAL
"4,140.00",South Notts Fabrications Ltd,Communities,Community Development,Parks & Playing Fields-Gen,8910,Responsive Works - Buildings,28/11/2018,Premises Related Expenditure,91506,COMMUNITIES
"4,000.00",Allan Joyce Architects Ltd,Capital Expenditure,Transformation & Innovation,Cotgrave Phase 2,0387,Legal & Professional Services,29/10/2018,Supplies & Services,90191,CAPITAL
"4,000.00",Kilworth Grange Management Services Ltd,Transformation,Customer Services,Customer Services,4807,Legal & Professional Services,18/12/2018,Supplies & Services,91899,TRANSFORMATION
"3,995.00",The Saville Group Ltd,Transformation,Ict,It Rechargeable Costs,4722,Maintenance Contracts - S&S,23/10/2018,Supplies & Services,90096,TRANSFORMATION
"3,923.00",Orange Pip Ltd,Transformation,Human Resources,Human Resources,4709,Legal & Professional Services,16/10/2018,Supplies & Services,90165,TRANSFORMATION
"3,920.00",A R Signs Ltd,Capital Expenditure,Transformation & Innovation,Multi Service Centre,0348,Legal & Professional Services,04/12/2018,Supplies & Services,91114,CAPITAL
"3,860.50",Bt Telephone Payment Centre,Transformation,Ict,It Rechargeable Costs,4722,Maintenance Contracts - S&S,14/12/2018,Supplies & Services,91710,TRANSFORMATION
"3,790.50",Bt Telephone Payment Centre,Transformation,Ict,It Rechargeable Costs,4722,Maintenance Contracts - S&S,12/10/2018,Supplies & Services,89337,TRANSFORMATION
"3,782.50",Proav Limited,Capital Expenditure,Transformation & Innovation,Ict Replacement Programme,0592,Computer Hardware,14/12/2018,Supplies & Services,91741,CAPITAL
"3,780.00",Rsm,Finance & Corporate Services,Financial Services,Internal Audit,4708,Legal & Professional Services,14/12/2018,Supplies & Services,91511,FINANCE & CORPORATE SERVICES
"3,742.00",Via East Midlands,Communities,Community Development,Tour Of Britain 2018,1583,Projects & Activities,19/11/2018,Supplies & Services,91011,COMMUNITIES
"3,740.00",Nottinghamshire County Council,Communities,Local Development Framework,Land Charges,1033,Other Services,09/11/2018,Supplies & Services,90643,COMMUNITIES
"3,705.00",Vinshire Plumbing & Heating Limited,Capital Expenditure,Communties,Warm Homes On Prescription,0337,Grants,14/12/2018,Supplies & Services,91512,CAPITAL
"3,580.00",Centre For Public Scrutiny Ltd (Cfps),Finance & Corporate Services,Democratic Services,Members Services,1000,Legal & Professional Services,20/12/2018,Supplies & Services,91202,FINANCE & CORPORATE SERVICES
"3,562.39",Frontline Recruitment Ltd,Neighbourhoods,Waste & Fleet Management,Waste Collection,8403,Agency Staff,12/10/2018,Employee Related Expenditure,89685,NEIGHBOURHOODS
"3,535.50",Live Trakway,Transformation,Economic Regeneration,West Bridgford Town Centre,1875,Publicity & Promotion,14/12/2018,Supplies & Services,91565,TRANSFORMATION
"3,511.02",Parkwood Community Leisure,Transformation,Property Services,Arena Civic Centre,4718,Electricity,16/10/2018,Premises Related Expenditure,90011,TRANSFORMATION
"3,494.96",Yu Energy,Transformation,Property Services,Bridgford Hall,1883,Gas,23/11/2018,Premises Related Expenditure,85445,TRANSFORMATION
"3,487.96",Daisy Communications Ltd,Transformation,Ict,It Rechargeable Costs,4722,Maintenance Contracts - S&S,19/11/2018,Supplies & Services,91055,TRANSFORMATION
"3,478.08",Frontline Recruitment Ltd,Neighbourhoods,Waste & Fleet Management,Waste Collection,8403,Agency Staff,16/11/2018,Employee Related Expenditure,89841,NEIGHBOURHOODS
"3,447.42",Parkwood Community Leisure,Transformation,Property Services,Arena Civic Centre,4718,Electricity,19/11/2018,Premises Related Expenditure,90806,TRANSFORMATION
"3,360.00",Keyworth Tennis Club,Capital Expenditure,Communties,Capital Grant Funding,0651,Grants,09/11/2018,Supplies & Services,90803,CAPITAL
"3,230.00",Ghm Planning Limited,Communities,Planning & Growth,Development Control,1161,Agency Staff,09/11/2018,Employee Related Expenditure,90350,COMMUNITIES
"3,222.29",Frontline Recruitment Ltd,Neighbourhoods,Waste & Fleet Management,Waste Collection,8403,Agency Staff,12/10/2018,Employee Related Expenditure,89422,NEIGHBOURHOODS
"3,195.84",Lewis Davey Ltd,Communities,Planning & Growth,Development Control,1161,Employee Advertising,12/11/2018,Employee Related Expenditure,90809,COMMUNITIES
"3,091.00",Hmrc,Transformation,Property Services,Land Holdings,1884,Legal & Professional Services,02/11/2018,Supplies & Services,90543,TRANSFORMATION
"3,073.34",Frontline Recruitment Ltd,Neighbourhoods,Waste & Fleet Management,Waste Collection,8403,Agency Staff,14/12/2018,Employee Related Expenditure,91744,NEIGHBOURHOODS
"3,062.89",Virgin Media Business,Capital Expenditure,Transformation & Innovation,Cotgrave Masterplan,0303,Legal & Professional Services,04/12/2018,Supplies & Services,91582,CAPITAL
"3,055.00",Lodge Tyre Co.Ltd,Neighbourhoods,Waste & Fleet Management,Waste Collection,8403,Tyres,23/11/2018,Transport Related Expenditure,91352,NEIGHBOURHOODS
"3,023.74",British Gas Business,Neighbourhoods,Waste & Fleet Management,Abbey Road Depot,4001,Electricity,16/10/2018,Premises Related Expenditure,90093,NEIGHBOURHOODS
"3,017.14",Streetwise Environmental Ltd,Communities,Community Development,Tour Of Britain 2018,1583,Projects & Activities,14/12/2018,Supplies & Services,91756,COMMUNITIES
"3,000.00",Arup,Transformation,Economic Regeneration,Economic Development,1887,Other Services,09/11/2018,Supplies & Services,90302,TRANSFORMATION
"3,000.00",E T Planning Ltd,Communities,Planning & Growth,Development Control,1161,Legal & Professional Services,02/11/2018,Supplies & Services,90456,COMMUNITIES
"2,985.65",Showsec International Limited,Communities,Community Development,Tour Of Britain 2018,1583,Projects & Activities,02/11/2018,Supplies & Services,90469,COMMUNITIES
"2,899.87",Metacompliance,Transformation,Ict,It Rechargeable Costs,4722,Maintenance Contracts - S&S,15/10/2018,Supplies & Services,90075,TRANSFORMATION
"2,850.00",Idox Software Limited,Capital Expenditure,Transformation & Innovation,Applications/Apps,0605,Software,20/12/2018,Supplies & Services,92187,CAPITAL
"2,800.00",West Bridgford Wire,Communities,Community Development,Community Development,1581,Other Miscellaneous Expenses,20/12/2018,Supplies & Services,91721,COMMUNITIES
"2,792.81",Frontline Recruitment Ltd,Neighbourhoods,Waste & Fleet Management,Waste Collection,8403,Agency Staff,12/10/2018,Employee Related Expenditure,89991,NEIGHBOURHOODS
"2,748.13",Frontline Recruitment Ltd,Neighbourhoods,Waste & Fleet Management,Waste Collection,8403,Agency Staff,19/10/2018,Employee Related Expenditure,90151,NEIGHBOURHOODS
"2,742.18",Lift & Engineering Services Ltd,Transformation,Property Services,The Point,1886,Service Maintenance Contracts,16/10/2018,Premises Related Expenditure,90103,TRANSFORMATION
"2,728.00",Prism Medical Uk Ltd,Capital Expenditure,Neighbourhoods,Disabled Facilities Grant,0332,Grants,07/12/2018,Supplies & Services,91541,CAPITAL
"2,721.60",Trent Valley Plumbing & Build,Capital Expenditure,Neighbourhoods,Disabled Facilities Grant,0332,Grants,23/10/2018,Supplies & Services,90293,CAPITAL
"2,716.53",Toot Hill School,Neighbourhoods,Leisure Contracts & Car Parks,Leisure Management Contract,1795,Gas,09/11/2018,Premises Related Expenditure,88147,FINANCE & CORPORATE SERVICES
"2,710.00",Obam Lift Services Ltd,Capital Expenditure,Neighbourhoods,Disabled Facilities Grant,0332,Grants,12/10/2018,Supplies & Services,89944,CAPITAL
"2,658.76",Frontline Recruitment Ltd,Neighbourhoods,Waste & Fleet Management,Waste Collection,8403,Agency Staff,07/12/2018,Employee Related Expenditure,91351,NEIGHBOURHOODS
"2,613.62",Carole Crookes,Communities,Local Development Framework,Development Plans,1232,Other Miscellaneous Expenses,11/12/2018,Supplies & Services,91764,COMMUNITIES
"2,590.00",Northgate Arinso Uk Ltd,Transformation,Human Resources,Human Resources,4709,Training Expenses,16/10/2018,Employee Related Expenditure,90163,TRANSFORMATION
"2,586.31",Water Plus,Neighbourhoods,Waste & Fleet Management,Abbey Road Depot,4001,Sewerage & Environmental,21/11/2018,Premises Related Expenditure,91012,NEIGHBOURHOODS
"2,570.00",Pure World Energy Ltd,Transformation,Property Services,Arena Civic Centre,4718,Other Miscellaneous Expenses,18/12/2018,Supplies & Services,91965,TRANSFORMATION
"2,554.37",Toot Hill School,Neighbourhoods,Leisure Contracts & Car Parks,Leisure Management Contract,1795,Gas,09/11/2018,Premises Related Expenditure,89549,FINANCE & CORPORATE SERVICES
"2,545.88",Nottinghamshire County Council,Neighbourhoods,Leisure Contracts & Car Parks,Leisure Management Contract,1795,Grounds Maintenance,23/11/2018,Premises Related Expenditure,91188,FINANCE & CORPORATE SERVICES
"2,529.67",Frontline Recruitment Ltd,Neighbourhoods,Waste & Fleet Management,Waste Collection,8403,Agency Staff,16/11/2018,Employee Related Expenditure,90918,NEIGHBOURHOODS
"2,504.50",Henson'S Catering Co,Communities,Community Development,Community Development,1581,Other Miscellaneous Expenses,14/12/2018,Supplies & Services,91911,COMMUNITIES
"2,455.00",Vinshire Plumbing & Heating Limited,Capital Expenditure,Communties,Warm Homes On Prescription,0337,Grants,20/12/2018,Supplies & Services,92132,CAPITAL
"2,387.00",Amptron Electrical Services Ltd,Neighbourhoods,Leisure Contracts & Car Parks,Leisure Management Contract,1795,Responsive Works - Buildings,26/11/2018,Premises Related Expenditure,91113,FINANCE & CORPORATE SERVICES
"2,331.86",Nottingham Audio Visual Services Ltd,Communities,Community Development,Young,1048,Other Miscellaneous Expenses,19/10/2018,Supplies & Services,87655,COMMUNITIES
"2,319.00",Obam Lift Services Ltd,Capital Expenditure,Neighbourhoods,Disabled Facilities Grant,0332,Grants,23/10/2018,Supplies & Services,90292,CAPITAL
"2,303.62",Michael Page International Recruitment Ltd,Transformation,Property Services,Property Services,4713,Agency Staff,07/12/2018,Employee Related Expenditure,91359,TRANSFORMATION
"2,286.90",Dell Corporation Ltd,Capital Expenditure,Transformation & Innovation,Technical Infrastructure,0603,Computer Hardware,19/10/2018,Supplies & Services,89958,CAPITAL
"2,281.42",Frontline Recruitment Ltd,Neighbourhoods,Waste & Fleet Management,Waste Collection,8403,Agency Staff,16/11/2018,Employee Related Expenditure,90706,NEIGHBOURHOODS
"2,280.00",Telefonica Uk Limited,Transformation,Ict,Telephones,4870,Mobiles,07/12/2018,Supplies & Services,90663,TRANSFORMATION
"2,250.00",Ludlow Hill Mot Centre,Neighbourhoods,Environmental Health,Hackney Carriage/Private Hire,1031,Contractors-Transport,14/12/2018,Transport Related Expenditure,91838,NEIGHBOURHOODS
"2,214.39",Frontline Recruitment Ltd,Neighbourhoods,Waste & Fleet Management,Waste Collection,8403,Agency Staff,20/12/2018,Employee Related Expenditure,91161,NEIGHBOURHOODS
"2,156.85",Zurich Municipal,Finance & Corporate Services,Financial Services,Main Premiums,4920,Premises Insurance,28/11/2018,Premises Related Expenditure,91179,FINANCE & CORPORATE SERVICES
"2,155.01",Central Fire Systems Ltd,Neighbourhoods,Leisure Contracts & Car Parks,Leisure Management Contract,1795,Responsive Works - Buildings,20/12/2018,Premises Related Expenditure,92058,FINANCE & CORPORATE SERVICES
"2,144.55",Vodafone Limited,Transformation,Ict,It Rechargeable Costs,4722,Maintenance Contracts - S&S,12/10/2018,Supplies & Services,87658,TRANSFORMATION
"2,144.55",Vodafone Limited,Transformation,Ict,It Rechargeable Costs,4722,Maintenance Contracts - S&S,12/10/2018,Supplies & Services,89950,TRANSFORMATION
"2,130.00",Streetwise Environmental Ltd,Transformation,Economic Regeneration,West Bridgford Town Centre,1875,Contractors-Supplies & Servs,11/12/2018,Supplies & Services,91644,TRANSFORMATION
"2,116.50",Cafe Piano Radcliffe On Trent Ltd,Transformation,Economic Regeneration,Economic Development,1887,Grants,03/10/2018,Supplies & Services,89844,TRANSFORMATION
"2,115.00",Ludlow Hill Mot Centre,Neighbourhoods,Environmental Health,Hackney Carriage/Private Hire,1031,Contractors-Transport,20/12/2018,Transport Related Expenditure,91936,NEIGHBOURHOODS
"2,112.61",Frontline Recruitment Ltd,Neighbourhoods,Waste & Fleet Management,Waste Collection,8403,Agency Staff,23/10/2018,Employee Related Expenditure,90327,NEIGHBOURHOODS
"2,099.10",British Gas Business,Neighbourhoods,Waste & Fleet Management,Abbey Road Depot,4001,Electricity,20/12/2018,Premises Related Expenditure,91846,NEIGHBOURHOODS
"2,080.00",Dta Electrical,Communities,Community Development,Gresham,8950,Responsive Works - Buildings,14/12/2018,Premises Related Expenditure,91742,COMMUNITIES
"2,050.50",E T Planning Ltd,Communities,Planning & Growth,Development Control,1161,Legal & Professional Services,18/12/2018,Supplies & Services,91200,COMMUNITIES
"2,025.31",Severn Trent Water,Neighbourhoods,Waste & Fleet Management,Tanker Services,1948,Waste Disposal,20/12/2018,Supplies & Services,91886,NEIGHBOURHOODS
"2,016.00",Maltby & Company,Communities,Community Development,Community Development,1581,Projects & Activities,02/11/2018,Supplies & Services,90181,COMMUNITIES
"2,015.00",Beechmast Ltd,Communities,Community Development,Environmental Promotion,1590,Legal & Professional Services,02/11/2018,Supplies & Services,90468,COMMUNITIES
"2,008.30",Horizon Landscapes Ltd,Capital Expenditure,Communties,Rcp - Car Park Improvements,0316,Contractors-Third Party,14/12/2018,Third Party Payments,91263,CAPITAL
"2,000.00",Bentley Project Management,Capital Expenditure,Transformation & Innovation,Cotgrave Masterplan,0303,Legal & Professional Services,19/10/2018,Supplies & Services,89975,CAPITAL
"2,000.00",Bentley Project Management,Capital Expenditure,Transformation & Innovation,Cotgrave Masterplan,0303,Legal & Professional Services,20/12/2018,Supplies & Services,91696,CAPITAL
"2,000.00",Cp Viability Ltd,Communities,Planning & Growth,Development Control,1161,Legal & Professional Services,23/11/2018,Supplies & Services,90296,COMMUNITIES
"2,000.00",Idox Software Limited,Capital Expenditure,Transformation & Innovation,Applications/Apps,0605,Software,23/10/2018,Supplies & Services,82682,CAPITAL
"2,000.00",Kilworth Grange Management Services Ltd,Transformation,Customer Services,Customer Services,4807,Legal & Professional Services,26/11/2018,Supplies & Services,90895,TRANSFORMATION
"1,977.87",Severn Trent Water,Neighbourhoods,Waste & Fleet Management,Tanker Services,1948,Waste Disposal,20/12/2018,Supplies & Services,90145,NEIGHBOURHOODS
"1,976.65",Konica Minolta Business Ltd,Transformation,Ict,Photocopiers,5017,Rental & Copy Charges,16/11/2018,Supplies & Services,82144,TRANSFORMATION
"1,940.00",Haymarket Media Group,Communities,Planning & Growth,Development Control,1161,Books & Publications,04/12/2018,Supplies & Services,90874,COMMUNITIES
"1,900.00",Idox Software Limited,Capital Expenditure,Transformation & Innovation,Technical Infrastructure,0603,Computer Hardware,29/10/2018,Supplies & Services,90054,CAPITAL
"1,900.00",Idox Software Limited,Transformation,Ict,It Rechargeable Costs,4722,Other Maintenance,23/10/2018,Supplies & Services,89125,TRANSFORMATION
"1,891.67",Frontline Recruitment Ltd,Neighbourhoods,Waste & Fleet Management,Waste Collection,8403,Agency Staff,02/11/2018,Employee Related Expenditure,90547,NEIGHBOURHOODS
"1,890.00",A R Signs Ltd,Finance & Corporate Services,"Performance, Repn & Comms",Performance And Reputation,4710,External Printing,14/12/2018,Supplies & Services,91637,FINANCE & CORPORATE SERVICES
"1,890.00",Ludlow Hill Mot Centre,Neighbourhoods,Environmental Health,Hackney Carriage/Private Hire,1031,Contractors-Transport,07/12/2018,Transport Related Expenditure,91058,NEIGHBOURHOODS
"1,885.00",Dolphin Mobility East Mids Ltd,Capital Expenditure,Neighbourhoods,Disabled Facilities Grant,0332,Grants,12/10/2018,Supplies & Services,90000,CAPITAL
"1,859.00",Hmrc,Finance & Corporate Services,Financial Services,Apprenticeship Levy,1043,Other Services,20/12/2018,Supplies & Services,92173,FINANCE & CORPORATE SERVICES
"1,850.00",Derby Legal Services Ltd,Transformation,Property Services,Land Holdings,1884,Legal & Professional Services,23/10/2018,Supplies & Services,90162,TRANSFORMATION
"1,845.00",Ludlow Hill Mot Centre,Neighbourhoods,Environmental Health,Hackney Carriage/Private Hire,1031,Contractors-Transport,07/12/2018,Transport Related Expenditure,91057,NEIGHBOURHOODS
"1,810.35",Art Of Brilliance Ltd,Transformation,Human Resources,Corporate Training,4893,Training Expenses,22/10/2018,Employee Related Expenditure,89974,TRANSFORMATION
"1,804.02",Nsl Limited,Neighbourhoods,Leisure Contracts & Car Parks,Car Parks,1900,Maintenance Contracts - S&S,19/11/2018,Supplies & Services,90682,FINANCE & CORPORATE SERVICES
"1,800.00",Blade Runners Commercial Ltd,Transformation,Property Services,The Point,1886,Responsive Works - Buildings,19/10/2018,Premises Related Expenditure,90104,TRANSFORMATION
"1,789.00",A R Signs Ltd,Finance & Corporate Services,"Performance, Repn & Comms",Performance And Reputation,4710,External Printing,14/12/2018,Supplies & Services,91640,FINANCE & CORPORATE SERVICES
"1,786.69",Nsl Limited,Neighbourhoods,Leisure Contracts & Car Parks,Car Parks,1900,Maintenance Contracts - S&S,14/12/2018,Supplies & Services,91585,FINANCE & CORPORATE SERVICES
"1,776.00",Medigold Health Consultancy Ltd,Transformation,Human Resources,Human Resources,4709,Occupational Health,18/12/2018,Employee Related Expenditure,91850,TRANSFORMATION
"1,776.00",Medigold Health Consultancy Ltd,Transformation,Human Resources,Human Resources,4709,Occupational Health,18/12/2018,Employee Related Expenditure,91919,TRANSFORMATION
"1,776.00",Medigold Health Consultancy Ltd,Transformation,Human Resources,Human Resources,4709,Occupational Health,20/12/2018,Employee Related Expenditure,92126,TRANSFORMATION
"1,775.59",Nsl Limited,Neighbourhoods,Leisure Contracts & Car Parks,Car Parks,1900,Maintenance Contracts - S&S,15/10/2018,Supplies & Services,90009,FINANCE & CORPORATE SERVICES
"1,768.00",Hmrc,Finance & Corporate Services,Financial Services,Apprenticeship Levy,1043,Other Services,28/11/2018,Supplies & Services,91471,FINANCE & CORPORATE SERVICES
"1,765.00",Patco Events Ltd,Communities,Community Development,Arts,1550,Projects & Activities,20/12/2018,Supplies & Services,91947,COMMUNITIES
"1,758.00",Hmrc,Finance & Corporate Services,Financial Services,Apprenticeship Levy,1043,Other Services,28/11/2018,Supplies & Services,91482,FINANCE & CORPORATE SERVICES
"1,755.00",Ludlow Hill Mot Centre,Neighbourhoods,Environmental Health,Hackney Carriage/Private Hire,1031,Contractors-Transport,16/10/2018,Transport Related Expenditure,89521,NEIGHBOURHOODS
"1,753.00",Co-Operative Funeral Care,Neighbourhoods,Environmental Health,Public Health,1127,Welfare Burials,20/12/2018,Supplies & Services,91851,NEIGHBOURHOODS
"1,732.00",Jne Security Ltd,Neighbourhoods,Environmental Health,Community Safety,1598,Projects & Activities,20/12/2018,Supplies & Services,92075,NEIGHBOURHOODS
"1,718.01",Konica Minolta Business Ltd,Transformation,Ict,Photocopiers,5017,Rental & Copy Charges,16/11/2018,Supplies & Services,72064,TRANSFORMATION
"1,711.56",British Gas Business,Neighbourhoods,Waste & Fleet Management,Abbey Road Depot,4001,Electricity,12/11/2018,Premises Related Expenditure,90836,NEIGHBOURHOODS
"1,705.00",Westcotes House Ltd,Neighbourhoods,Strategic Housing,Homeless B&B,1110,Housing-Emergency Accommodn,09/11/2018,Supplies & Services,90841,NEIGHBOURHOODS
"1,680.00",Nottinghamshire County Council,Communities,Local Development Framework,Land Charges,1033,Other Services,02/11/2018,Supplies & Services,90642,COMMUNITIES
"1,674.00",H2o Building Services,Transformation,Property Services,"Colliers, Cotgrave",1898,Responsive Works - Buildings,20/12/2018,Premises Related Expenditure,92071,TRANSFORMATION
"1,670.00",Hamptons Classics Ltd,Transformation,Economic Regeneration,Economic Development,1887,Grants,15/10/2018,Supplies & Services,89843,TRANSFORMATION
"1,657.97",Print Image Network Ltd,Finance & Corporate Services,Democratic Services,Electoral Registration,1026,External Printing,09/11/2018,Supplies & Services,90711,FINANCE & CORPORATE SERVICES
"1,656.96",Corona Energy Retail 3 Ltd,Neighbourhoods,Waste & Fleet Management,Abbey Road Depot,4001,Gas,18/12/2018,Premises Related Expenditure,91166,NEIGHBOURHOODS
"1,650.00",Matts Monitors Ltd,Neighbourhoods,Environmental Health,Pollution Control,1050,Other Miscellaneous Expenses,02/11/2018,Supplies & Services,90650,NEIGHBOURHOODS
"1,639.50",Jne Security Ltd,Neighbourhoods,Environmental Health,Community Safety,1598,Projects & Activities,29/10/2018,Supplies & Services,89969,NEIGHBOURHOODS
"1,637.16",Print Image Network Ltd,Finance & Corporate Services,Democratic Services,Electoral Registration,1026,External Printing,09/11/2018,Supplies & Services,90898,FINANCE & CORPORATE SERVICES
"1,635.00",Streetwise Environmental Ltd,Communities,Community Development,Bridgford Park,8927,Responsive Works - Buildings,14/12/2018,Premises Related Expenditure,91498,COMMUNITIES
"1,632.00",Parkwood Community Leisure,Neighbourhoods,Leisure Contracts & Car Parks,Leisure Management Contract,1795,D.B.S Checks - Employees,23/11/2018,Employee Related Expenditure,90150,FINANCE & CORPORATE SERVICES
"1,620.00",Streetwise Environmental Ltd,Neighbourhoods,Environmental Health,Community Safety,1598,Projects & Activities,29/10/2018,Supplies & Services,89691,NEIGHBOURHOODS
"1,600.00",Maltby & Company,Communities,Community Development,Community Development,1581,Projects & Activities,14/12/2018,Supplies & Services,91627,COMMUNITIES
"1,597.92",Lewis Davey Ltd,Communities,Planning & Growth,Development Control,1161,Employee Advertising,14/12/2018,Employee Related Expenditure,91920,COMMUNITIES
"1,588.04",Zurich Municipal,Finance & Corporate Services,Financial Services,Main Premiums,4920,Premises Insurance,28/11/2018,Premises Related Expenditure,91180,FINANCE & CORPORATE SERVICES
"1,575.15",The South Wolds Academy And Sixth Form,Neighbourhoods,Leisure Contracts & Car Parks,Leisure Management Contract,1795,Water Charges,29/10/2018,Premises Related Expenditure,89989,FINANCE & CORPORATE SERVICES
"1,575.00",Ep Consulting Building Services Engineers,Capital Expenditure,Transformation & Innovation,Cotgrave Masterplan,0303,Legal & Professional Services,16/11/2018,Supplies & Services,90854,CAPITAL
"1,575.00",Ep Consulting Building Services Engineers,Capital Expenditure,Transformation & Innovation,Cotgrave Masterplan,0303,Legal & Professional Services,16/11/2018,Supplies & Services,90855,CAPITAL
"1,571.42",Frontline Recruitment Ltd,Neighbourhoods,Waste & Fleet Management,Waste Collection,8403,Agency Staff,07/12/2018,Employee Related Expenditure,91572,NEIGHBOURHOODS
"1,553.00",Se Vernau Ltd,Transformation,Economic Regeneration,Economic Development,1887,Grants,09/11/2018,Supplies & Services,90346,TRANSFORMATION
"1,550.00",Vinshire Plumbing & Heating Limited,Capital Expenditure,Communties,Warm Homes On Prescription,0337,Grants,09/11/2018,Supplies & Services,90454,CAPITAL
"1,527.70",Xerox (Uk) Limited,Capital Expenditure,Transformation & Innovation,Technical Infrastructure,0603,Computer Hardware,19/11/2018,Supplies & Services,91021,CAPITAL
"1,519.00",Associated Engineering Services Limited,Transformation,Property Services,Arena Civic Centre,4718,Responsive Works - Buildings,20/12/2018,Premises Related Expenditure,91013,TRANSFORMATION
"1,517.58",Edf Energy,Neighbourhoods,Leisure Contracts & Car Parks,Car Parks,1900,Electricity,12/11/2018,Premises Related Expenditure,90861,FINANCE & CORPORATE SERVICES
"1,500.00",Idox Software Limited,Capital Expenditure,Transformation & Innovation,Technical Infrastructure,0603,Computer Hardware,02/11/2018,Supplies & Services,89811,CAPITAL
"1,500.00",Shoosmiths,Communities,Planning & Growth,Development Control,1161,Legal & Professional Services,22/10/2018,Supplies & Services,89657,COMMUNITIES
"1,475.00",Grapefruit Creative,Finance & Corporate Services,"Performance, Repn & Comms",Performance And Reputation,4710,Legal & Professional Services,09/11/2018,Supplies & Services,90646,FINANCE & CORPORATE SERVICES
"1,440.76",Royal Mail Group Ltd,Transformation,Bsu,Central Mail,4871,Postages,14/12/2018,Supplies & Services,91692,TRANSFORMATION
"1,440.00",Ludlow Hill Mot Centre,Neighbourhoods,Environmental Health,Hackney Carriage/Private Hire,1031,Contractors-Transport,07/12/2018,Transport Related Expenditure,91048,NEIGHBOURHOODS
"1,425.00",Idox Software Limited,Capital Expenditure,Transformation & Innovation,Technical Infrastructure,0603,Computer Hardware,26/11/2018,Supplies & Services,91031,CAPITAL
"1,419.45",Royal Mail Group Ltd,Transformation,Bsu,Central Mail,4871,Postages,23/10/2018,Supplies & Services,90148,TRANSFORMATION
"1,417.25",Park Avenue,Communities,Planning & Growth,Development Control,1161,Agency Staff,12/10/2018,Employee Related Expenditure,89840,COMMUNITIES
"1,417.25",Park Avenue,Communities,Planning & Growth,Development Control,1161,Agency Staff,19/10/2018,Employee Related Expenditure,90149,COMMUNITIES
"1,416.80",Park Avenue,Communities,Planning & Growth,Development Control,1161,Agency Staff,15/10/2018,Employee Related Expenditure,89987,COMMUNITIES
"1,415.45",Park Avenue,Communities,Planning & Growth,Development Control,1161,Agency Staff,18/12/2018,Employee Related Expenditure,91629,COMMUNITIES
"1,414.71",Service Level Management Ltd,Transformation,Bsu,Central Mail,4871,Postages,23/11/2018,Supplies & Services,90850,TRANSFORMATION
"1,413.54",Royal Mail Group Ltd,Transformation,Bsu,Central Mail,4871,Postages,15/10/2018,Supplies & Services,89802,TRANSFORMATION
"1,412.30",Park Avenue,Communities,Planning & Growth,Development Control,1161,Agency Staff,21/11/2018,Employee Related Expenditure,91160,COMMUNITIES
"1,412.20",Park Avenue,Communities,Planning & Growth,Development Control,1161,Agency Staff,21/11/2018,Employee Related Expenditure,91159,COMMUNITIES
"1,404.71",Park Avenue,Communities,Planning & Growth,Development Control,1161,Agency Staff,29/10/2018,Employee Related Expenditure,90328,COMMUNITIES
"1,400.05",Bruel & Kjaer,Neighbourhoods,Environmental Health,Pollution Control,1050,Other Equipment/Materials,07/12/2018,Supplies & Services,91514,NEIGHBOURHOODS
"1,392.85",Park Avenue,Communities,Planning & Growth,Development Control,1161,Agency Staff,18/12/2018,Employee Related Expenditure,92057,COMMUNITIES
"1,380.00",Lex Leisure,Transformation,Bsu,Business Support Unit,4805,Legal & Professional Services,14/12/2018,Supplies & Services,91358,TRANSFORMATION
"1,376.00",Gedling Borough Council,Finance & Corporate Services,Democratic Services,Borough Council Elections,1021,Contractors-Supplies & Servs,14/12/2018,Supplies & Services,91493,FINANCE & CORPORATE SERVICES
"1,360.00",Open University,Communities,Planning & Growth,Development Control,1161,Training Expenses,20/12/2018,Employee Related Expenditure,91199,COMMUNITIES
"1,358.86",Axess Systems Ltd,Transformation,Ict,It Rechargeable Costs,4722,Maintenance Contracts - S&S,09/11/2018,Supplies & Services,90206,TRANSFORMATION
"1,358.16",Water Plus,Neighbourhoods,Waste & Fleet Management,Abbey Road Depot,4001,Sewerage & Environmental,23/10/2018,Premises Related Expenditure,90013,NEIGHBOURHOODS
"1,356.20",Park Avenue,Communities,Planning & Growth,Development Control,1161,Agency Staff,18/12/2018,Employee Related Expenditure,91350,COMMUNITIES
"1,350.00",Traffic Management Svs Ltd,Communities,Community Development,Tour Of Britain 2018,1583,Projects & Activities,09/11/2018,Supplies & Services,89682,COMMUNITIES
"1,320.00",Lex Leisure,Transformation,Bsu,Business Support Unit,4805,Legal & Professional Services,18/12/2018,Supplies & Services,91577,TRANSFORMATION
"1,320.00",Parkwood Community Leisure,Transformation,Bsu,Business Support Unit,4805,Legal & Professional Services,11/12/2018,Supplies & Services,91319,TRANSFORMATION
"1,320.00",Parkwood Community Leisure,Transformation,Bsu,Business Support Unit,4805,Legal & Professional Services,11/12/2018,Supplies & Services,91320,TRANSFORMATION
"1,315.52",Triscan Systems Limited,Transformation,Ict,It Rechargeable Costs,4722,Maintenance Contracts - S&S,23/10/2018,Supplies & Services,90449,TRANSFORMATION
"1,308.00",Co-Operative Funeral Care,Neighbourhoods,Environmental Health,Public Health,1127,Welfare Burials,29/10/2018,Supplies & Services,90249,NEIGHBOURHOODS
"1,300.00",Northgate Public Services (Uk) Ltd,Transformation,Ict,It Rechargeable Costs,4722,Maintenance Contracts - S&S,07/12/2018,Supplies & Services,91343,TRANSFORMATION
"1,266.08",Frontline Recruitment Ltd,Neighbourhoods,Waste & Fleet Management,Waste Collection,8403,Agency Staff,18/12/2018,Employee Related Expenditure,91969,NEIGHBOURHOODS
"1,250.00",Idox Software Limited,Capital Expenditure,Transformation & Innovation,Applications/Apps,0605,Software,23/10/2018,Supplies & Services,90025,CAPITAL
"1,245.78",Telefonica Uk Limited,Transformation,Ict,Telephones,4870,Mobiles,14/12/2018,Supplies & Services,91256,TRANSFORMATION
"1,239.99",Royal Mail Group Ltd,Transformation,Bsu,Central Mail,4871,Postages,07/12/2018,Supplies & Services,91063,TRANSFORMATION
"1,236.00",Freeths Llp,Capital Expenditure,Transformation & Innovation,Cotgrave Masterplan,0303,Legal & Professional Services,02/11/2018,Supplies & Services,90636,CAPITAL
"1,230.84",Thyssenkrupp Elevator Uk Limited,Transformation,Property Services,Arena Civic Centre,4718,Service Maintenance Contracts,23/11/2018,Premises Related Expenditure,90442,TRANSFORMATION
"1,225.11",Fueltek Ltd,Neighbourhoods,Waste & Fleet Management,Fleet,8600,Maintenance Contracts - Prems,29/10/2018,Premises Related Expenditure,90050,NEIGHBOURHOODS
"1,221.72",Calor Gas Limited,Communities,Community Development,West Park,8994,Gas,02/11/2018,Premises Related Expenditure,90039,COMMUNITIES
"1,217.04",Service Level Management Ltd,Transformation,Bsu,Central Mail,4871,Postages,20/12/2018,Supplies & Services,91734,TRANSFORMATION
"1,215.00",Badenoch & Clark,Finance & Corporate Services,Financial Services,Financial Services,4705,Agency Staff,12/10/2018,Employee Related Expenditure,90001,FINANCE & CORPORATE SERVICES
"1,215.00",Badenoch & Clark,Finance & Corporate Services,Financial Services,Financial Services,4705,Agency Staff,12/10/2018,Employee Related Expenditure,90002,FINANCE & CORPORATE SERVICES
"1,215.00",Badenoch & Clark,Finance & Corporate Services,Financial Services,Financial Services,4705,Agency Staff,19/10/2018,Employee Related Expenditure,90067,FINANCE & CORPORATE SERVICES
"1,215.00",Badenoch & Clark,Finance & Corporate Services,Financial Services,Financial Services,4705,Agency Staff,19/10/2018,Employee Related Expenditure,90095,FINANCE & CORPORATE SERVICES
"1,215.00",Badenoch & Clark,Finance & Corporate Services,Financial Services,Financial Services,4705,Agency Staff,09/11/2018,Employee Related Expenditure,90689,FINANCE & CORPORATE SERVICES
"1,215.00",Badenoch & Clark,Finance & Corporate Services,Financial Services,Financial Services,4705,Agency Staff,09/11/2018,Employee Related Expenditure,90690,FINANCE & CORPORATE SERVICES
"1,215.00",Badenoch & Clark,Finance & Corporate Services,Financial Services,Financial Services,4705,Agency Staff,19/11/2018,Employee Related Expenditure,90712,FINANCE & CORPORATE SERVICES
"1,215.00",Badenoch & Clark,Finance & Corporate Services,Financial Services,Financial Services,4705,Agency Staff,19/11/2018,Employee Related Expenditure,90921,FINANCE & CORPORATE SERVICES
"1,210.00",Riba Enterprises Ltd,Transformation,Property Services,Property Services,4713,Subscriptions,18/12/2018,Supplies & Services,91731,TRANSFORMATION
"1,200.00",1st Galaxy Fireworks Ltd,Transformation,Economic Regeneration,West Bridgford Town Centre,1875,Publicity & Promotion,20/12/2018,Supplies & Services,91926,TRANSFORMATION
"1,200.00",I&Dea,Transformation,Human Resources,Corporate Training,4893,Training Expenses,14/12/2018,Employee Related Expenditure,91469,TRANSFORMATION
"1,200.00",Mk Door Systems Ltd T/A Style Midlands,Transformation,Property Services,Arena Civic Centre,4718,Service Maintenance Contracts,14/12/2018,Premises Related Expenditure,91960,TRANSFORMATION
"1,200.00",Parkwood Community Leisure,Transformation,Bsu,Business Support Unit,4805,Legal & Professional Services,02/11/2018,Supplies & Services,90012,TRANSFORMATION
"1,200.00",Parkwood Community Leisure,Transformation,Bsu,Business Support Unit,4805,Legal & Professional Services,11/12/2018,Supplies & Services,91321,TRANSFORMATION
"1,200.00",Public Leaders Appointments,Transformation,Ict,It,4703,Legal & Professional Services,09/11/2018,Supplies & Services,90560,TRANSFORMATION
"1,200.00",West Bridgford Joinery Ltd,Transformation,Property Services,Arena Civic Centre,4718,Other Miscellaneous Expenses,18/12/2018,Supplies & Services,91575,TRANSFORMATION
"1,185.24",Adt Fire And Security Plc,Neighbourhoods,Waste & Fleet Management,Abbey Road Depot,4001,Service Maintenance Contracts,16/10/2018,Premises Related Expenditure,89751,NEIGHBOURHOODS
"1,184.00",Public-I,Capital Expenditure,Transformation & Innovation,Ict Replacement Programme,0592,Computer Hardware,09/11/2018,Supplies & Services,90908,CAPITAL
"1,171.17",Royal Mail Group Ltd,Transformation,Bsu,Central Mail,4871,Postages,09/11/2018,Supplies & Services,90517,TRANSFORMATION
"1,163.36",Storm Environmental Ltd,Capital Expenditure,Neighbourhoods,Wheeled Bins,0310,Other Equipment/Materials,02/11/2018,Supplies & Services,89962,CAPITAL
"1,155.00",Westcotes House Ltd,Neighbourhoods,Strategic Housing,Homeless B&B,1110,Housing-Emergency Accommodn,03/10/2018,Supplies & Services,89905,NEIGHBOURHOODS
"1,121.00",Park Avenue,Communities,Planning & Growth,Development Control,1161,Agency Staff,18/12/2018,Employee Related Expenditure,91632,COMMUNITIES
"1,110.00",J Coates (Hgv Services) Ltd,Neighbourhoods,Waste & Fleet Management,Waste Collection,8403,Training Expenses,20/12/2018,Employee Related Expenditure,90723,NEIGHBOURHOODS
"1,104.00",The Law Society,Finance & Corporate Services,Legal,Legal Services,4701,Professional Subscriptions,07/11/2018,Employee Related Expenditure,90542,FINANCE & CORPORATE SERVICES
"1,092.49",Staddon & Sons (Nottingham Ltd),Neighbourhoods,Strategic Housing,Hostel Hound Lodge,1111,Other Equipment/Materials,02/11/2018,Supplies & Services,90575,NEIGHBOURHOODS
"1,077.32",Arden Winch & Co Ltd,Neighbourhoods,Waste & Fleet Management,Waste Collection,8403,Protective Clothing/Uniforms,14/12/2018,Supplies & Services,91346,NEIGHBOURHOODS
"1,066.70",Maltby & Company,Transformation,Property Services,Arena Civic Centre,4718,Planned Maintenance Recharge,26/11/2018,Supplies & Services,90937,TRANSFORMATION
"1,066.35",Print Image Network Ltd,Finance & Corporate Services,Democratic Services,Electoral Registration,1026,External Printing,14/12/2018,Supplies & Services,91897,FINANCE & CORPORATE SERVICES
"1,048.37",Zurich Municipal,Finance & Corporate Services,Financial Services,Liability Claims,4921,Excesses Paid,23/11/2018,Other Control/Suspense A/Cs,90919,FINANCE & CORPORATE SERVICES
"1,044.99",Itsa Goal Limited,Communities,Community Development,Alford Road,8940,Responsive Works - Buildings,02/11/2018,Premises Related Expenditure,90250,COMMUNITIES
"1,042.46",Royal Mail Group Ltd,Transformation,Bsu,Central Mail,4871,Postages,03/10/2018,Supplies & Services,89173,TRANSFORMATION
"1,037.40",Traffic Management Svs Ltd,Transformation,Economic Regeneration,West Bridgford Town Centre,1875,Contractors-Third Party,14/12/2018,Third Party Payments,91559,TRANSFORMATION
"1,034.71",Water Plus,Communities,Community Development,Alford Road,8940,Water Charges,19/11/2018,Premises Related Expenditure,89036,COMMUNITIES
"1,033.11",Triscan Systems Limited,Transformation,Ict,It Rechargeable Costs,4722,Maintenance Contracts - S&S,11/12/2018,Supplies & Services,90443,TRANSFORMATION
"1,021.40",M3c Sports Supplies Limited,Communities,Community Development,Gresham,8950,Responsive Works - Buildings,19/10/2018,Premises Related Expenditure,90016,COMMUNITIES
"1,019.54",Maltby & Company,Transformation,Property Services,Street Nameplates & Pub. Signs,1920,Contractors-Supplies & Servs,16/11/2018,Supplies & Services,90188,TRANSFORMATION
"1,000.00",Midlands Rural Housing,Neighbourhoods,Strategic Housing,Housing Strategy,1146,Grants,19/11/2018,Supplies & Services,90352,NEIGHBOURHOODS
"1,000.00",Nottinghamshire County Council,Communities,Community Development,Environmental Promotion,1590,Subscriptions,20/12/2018,Supplies & Services,91564,COMMUNITIES
999.68,Maltby & Company,Neighbourhoods,Waste & Fleet Management,Abbey Road Depot,4001,Responsive Works - Buildings,23/11/2018,Premises Related Expenditure,89530,NEIGHBOURHOODS
999.00,Anthony Collins Solicitors Llp,Finance & Corporate Services,Emt & Transformation,Executive Management Team,4721,Legal & Professional Services,02/11/2018,Supplies & Services,90435,FINANCE & CORPORATE SERVICES
999.00,Ninesharp Ltd,Transformation,Ict,It,4703,Agency Staff,12/10/2018,Employee Related Expenditure,87650,TRANSFORMATION
996.66,Reach Publishing Services Limited,Communities,Planning & Growth,Development Control,1161,Advertising,09/11/2018,Supplies & Services,90876,COMMUNITIES
996.66,Reach Publishing Services Limited,Communities,Planning & Growth,Development Control,1161,Advertising,21/11/2018,Supplies & Services,91291,COMMUNITIES
990.19,Calor Gas Limited,Communities,Community Development,West Park,8994,Gas,11/12/2018,Premises Related Expenditure,91323,COMMUNITIES
982.43,Maltby & Company,Transformation,Property Services,Arena Civic Centre,4718,Responsive Works - Buildings,29/10/2018,Premises Related Expenditure,90187,TRANSFORMATION
982.16,Michael Page International Recruitment Ltd,Transformation,Property Services,Property Services,4713,Agency Staff,19/10/2018,Employee Related Expenditure,90208,TRANSFORMATION
975.00,Cipfa Business Limited,Transformation,Property Services,Property Services,4713,Subscriptions,09/11/2018,Supplies & Services,90523,TRANSFORMATION
970.00,Enigma Health & Safety Management Ltd,Transformation,Property Services,New Offices - Cotgrave,4798,Legal & Professional Services,23/11/2018,Supplies & Services,90852,TRANSFORMATION
969.50,Crimson Fire Risk Services Ltd,Capital Expenditure,Transformation & Innovation,Cotgrave Masterplan,0303,Contractors-Third Party,02/11/2018,Third Party Payments,90254,CAPITAL
968.00,Corona Energy Retail 3 Ltd,Neighbourhoods,Waste & Fleet Management,Abbey Road Depot,4001,Gas,18/12/2018,Premises Related Expenditure,92063,NEIGHBOURHOODS
957.12,Dell Corporation Ltd,Capital Expenditure,Transformation & Innovation,Technical Infrastructure,0603,Computer Hardware,19/10/2018,Supplies & Services,89959,CAPITAL
955.46,Carole Crookes,Communities,Local Development Framework,Development Plans,1232,Other Miscellaneous Expenses,11/12/2018,Supplies & Services,90868,COMMUNITIES
954.00,Creative Festivities Limited,Finance & Corporate Services,"Performance, Repn & Comms",Performance And Reputation,4710,Other Miscellaneous Expenses,29/10/2018,Supplies & Services,90062,FINANCE & CORPORATE SERVICES
952.40,Michael Page International Recruitment Ltd,Transformation,Property Services,Property Services,4713,Agency Staff,19/10/2018,Employee Related Expenditure,90143,TRANSFORMATION
948.07,British Gas Business,Communities,Community Development,Gresham,8950,Electricity,11/12/2018,Premises Related Expenditure,91172,COMMUNITIES
943.74,Water Plus,Neighbourhoods,Waste & Fleet Management,Abbey Road Depot,4001,Water Charges,14/12/2018,Premises Related Expenditure,91693,NEIGHBOURHOODS
941.23,Royal Mail Group Ltd,Finance & Corporate Services,Democratic Services,Electoral Registration,1026,Postages,23/10/2018,Supplies & Services,90146,FINANCE & CORPORATE SERVICES
940.52,British Gas Business,Neighbourhoods,Waste & Fleet Management,Abbey Road Depot,4001,Electricity,16/10/2018,Premises Related Expenditure,90092,NEIGHBOURHOODS
935.00,Nuthall Electrical Services Ltd,Transformation,Property Services,Arena Civic Centre,4718,Responsive Works - Buildings,12/10/2018,Premises Related Expenditure,90057,TRANSFORMATION
933.98,Xerox (Uk) Limited,Transformation,Ict,Photocopiers,5017,Rental & Copy Charges,23/10/2018,Supplies & Services,90207,TRANSFORMATION
909.66,Reach Publishing Services Limited,Communities,Planning & Growth,Development Control,1161,Advertising,02/11/2018,Supplies & Services,90530,COMMUNITIES
905.00,Lyreco,Communities,Community Development,Facilities Team,4714,Cleaning Equipment/Materials,26/11/2018,Supplies & Services,90720,COMMUNITIES
901.43,Severn Trent Searches,Transformation,Property Services,Land Holdings,1884,Legal & Professional Services,12/10/2018,Supplies & Services,89689,TRANSFORMATION
898.16,British Gas Business,Neighbourhoods,Waste & Fleet Management,Abbey Road Depot,4001,Electricity,14/12/2018,Premises Related Expenditure,91571,NEIGHBOURHOODS
892.67,British Gas Business,Neighbourhoods,Waste & Fleet Management,Abbey Road Depot,4001,Electricity,12/11/2018,Premises Related Expenditure,90710,NEIGHBOURHOODS
890.20,Maltby & Company,Communities,Community Development,Alford Road,8940,Responsive Works - Buildings,26/11/2018,Premises Related Expenditure,90935,COMMUNITIES
876.78,Adt Fire And Security Plc,Neighbourhoods,Waste & Fleet Management,Abbey Road Depot,4001,Service Maintenance Contracts,29/10/2018,Premises Related Expenditure,90036,NEIGHBOURHOODS
871.08,Parkwood Community Leisure,Transformation,Property Services,Arena Civic Centre,4718,Electricity,16/10/2018,Premises Related Expenditure,90010,TRANSFORMATION
867.73,British Gas Business,Communities,Community Development,Gresham,8950,Water Charges,02/11/2018,Premises Related Expenditure,90338,COMMUNITIES
852.00,Newark & Sherwood District Council,Finance & Corporate Services,Financial Services,Suspense No Code,5224,Returned Creditors,14/12/2018,Returned Creditors,91935,FINANCE & CORPORATE SERVICES
851.40,Electoral Reform Services,Finance & Corporate Services,Democratic Services,Electoral Registration,1026,External Printing,19/11/2018,Supplies & Services,90709,FINANCE & CORPORATE SERVICES
847.00,Saxondale Kennels,Neighbourhoods,Environmental Health,Dog Control,1057,Legal & Professional Services,20/12/2018,Supplies & Services,91711,NEIGHBOURHOODS
838.80,Midland Hotel,Neighbourhoods,Strategic Housing,Homeless B&B,1110,Housing-Emergency Accommodn,02/11/2018,Supplies & Services,90551,NEIGHBOURHOODS
836.68,Vip System Limited,Neighbourhoods,Environmental Health,Hackney Carriage/Private Hire,1031,Other Equipment/Materials,20/12/2018,Supplies & Services,92138,NEIGHBOURHOODS
835.00,Nuthall Electrical Services Ltd,Capital Expenditure,Transformation & Innovation,Arena Car Park,0336,Contractors-Third Party,14/12/2018,Third Party Payments,91750,CAPITAL
822.00,Assoc Of Electoral Admin,Assets,Current Assets,Parliamentary Election,7103,Training Expenses,02/11/2018,Employee Related Expenditure,90561,FINANCE & CORPORATE SERVICES
822.00,Assoc Of Electoral Admin,Finance & Corporate Services,Democratic Services,Electoral Registration,1026,Conferences - Employees,02/11/2018,Supplies & Services,90562,FINANCE & CORPORATE SERVICES
811.58,The South Wolds Academy And Sixth Form,Neighbourhoods,Leisure Contracts & Car Parks,Leisure Management Contract,1795,Gas,04/12/2018,Premises Related Expenditure,91062,FINANCE & CORPORATE SERVICES
809.03,Service Level Management Ltd,Transformation,Bsu,Central Mail,4871,Postages,14/12/2018,Supplies & Services,91739,TRANSFORMATION
809.00,Fixfire,Communities,Community Development,Gresham,8950,Planned Maintenance Recharge,07/12/2018,Supplies & Services,91484,COMMUNITIES
804.69,Service Level Management Ltd,Transformation,Bsu,Central Mail,4871,Postages,16/11/2018,Supplies & Services,90847,TRANSFORMATION
800.00,Curlew Corporate Clothing Ltd,Transformation,Customer Services,Customer Services,4807,Protective Clothing/Uniforms,14/12/2018,Supplies & Services,91183,TRANSFORMATION
800.00,South Notts Fabrications Ltd,Transformation,Property Services,Parish Run Pub Conveniences,1072,Responsive Works - Buildings,19/11/2018,Premises Related Expenditure,90719,TRANSFORMATION
792.88,Service Level Management Ltd,Transformation,Bsu,Central Mail,4871,Postages,20/12/2018,Supplies & Services,91735,TRANSFORMATION
780.00,Foremost Security Limited,Capital Expenditure,Transformation & Innovation,Arena Car Park,0336,Contractors-Third Party,23/10/2018,Third Party Payments,90100,CAPITAL
780.00,Zebra Training Services Ltd,Finance & Corporate Services,Revenues & Benefits,Universal Credits,1144,Other Government Grants,16/10/2018,Income,89812,FINANCE & CORPORATE SERVICES
778.03,Maltby & Company,Transformation,Property Services,Parish Run Pub Conveniences,1072,Planned Maintenance Recharge,26/11/2018,Supplies & Services,90940,TRANSFORMATION
777.00,Apse,Neighbourhoods,Waste & Fleet Management,Contracts & Projects Ha,4716,Training Expenses,02/11/2018,Employee Related Expenditure,90174,COMMUNITIES
751.45,Reach Publishing Services Limited,Communities,Planning & Growth,Development Control,1161,Advertising,15/10/2018,Supplies & Services,89825,COMMUNITIES
750.00,Due North Ltd,Transformation,Ict,It Rechargeable Costs,4722,Maintenance Contracts - S&S,23/10/2018,Supplies & Services,90460,TRANSFORMATION
750.00,Gotham Park Project,Finance & Corporate Services,Democratic Services,Members Services,1000,Grants,11/12/2018,Supplies & Services,91763,FINANCE & CORPORATE SERVICES
750.00,Sarah Mcnicol Coaching,Transformation,Human Resources,Corporate Training,4893,Training Expenses,09/11/2018,Employee Related Expenditure,89837,TRANSFORMATION
750.00,Trent Bridge Community Trust,Neighbourhoods,Environmental Health,Community Safety,1598,Projects & Activities,16/10/2018,Supplies & Services,89529,NEIGHBOURHOODS
744.00,Althams,Neighbourhoods,Environmental Health,Community Safety,1598,Projects & Activities,16/11/2018,Supplies & Services,90256,NEIGHBOURHOODS
740.00,Streetwise Environmental Ltd,Transformation,Property Services,South Wilford Cemetery,1931,Responsive Works - Buildings,23/10/2018,Premises Related Expenditure,90198,TRANSFORMATION
737.67,The South Wolds Academy And Sixth Form,Neighbourhoods,Leisure Contracts & Car Parks,Leisure Management Contract,1795,Electricity,26/11/2018,Premises Related Expenditure,90864,FINANCE & CORPORATE SERVICES
734.85,The South Wolds Academy And Sixth Form,Neighbourhoods,Leisure Contracts & Car Parks,Leisure Management Contract,1795,Electricity,26/11/2018,Premises Related Expenditure,89559,FINANCE & CORPORATE SERVICES
725.59,Western Power Distribution (East Mids) Ltd,Finance & Corporate Services,Financial Services,Suspense No Code,5224,Returned Creditors,19/11/2018,Returned Creditors,90659,FINANCE & CORPORATE SERVICES
720.92,The South Wolds Academy And Sixth Form,Neighbourhoods,Leisure Contracts & Car Parks,Leisure Management Contract,1795,Electricity,18/12/2018,Premises Related Expenditure,91888,FINANCE & CORPORATE SERVICES
720.00,Pee Wee Toilet Hire,Communities,Community Development,Tour Of Britain 2018,1583,Projects & Activities,03/10/2018,Supplies & Services,89814,COMMUNITIES
720.00,The Marquee Company Limited,Communities,Community Development,Health Development,1058,Programme Budget,09/11/2018,Premises Related Expenditure,90946,COMMUNITIES
714.00,Severn Trent Searches,Transformation,Property Services,Land Holdings,1884,Legal & Professional Services,07/12/2018,Supplies & Services,91695,TRANSFORMATION
711.90,Reach Publishing Services Limited,Communities,Planning & Growth,Development Control,1161,Advertising,23/10/2018,Supplies & Services,90308,COMMUNITIES
710.73,The South Wolds Academy And Sixth Form,Neighbourhoods,Leisure Contracts & Car Parks,Leisure Management Contract,1795,Electricity,09/11/2018,Premises Related Expenditure,90329,FINANCE & CORPORATE SERVICES
710.00,Newark And Sherwood D C,Finance & Corporate Services,Financial Services,Suspense No Code,5224,Returned Creditors,13/12/2018,Returned Creditors,91690,FINANCE & CORPORATE SERVICES
710.00,Newark & Sherwood District Council,Capital Expenditure,Neighbourhoods,Wheeled Bins,0310,Other Equipment/Materials,23/11/2018,Supplies & Services,90633,CAPITAL
709.68,Lyreco,Communities,Community Development,Facilities Team,4714,Cleaning Equipment/Materials,18/12/2018,Supplies & Services,91622,COMMUNITIES
708.16,The South Wolds Academy And Sixth Form,Neighbourhoods,Leisure Contracts & Car Parks,Leisure Management Contract,1795,Electricity,23/11/2018,Premises Related Expenditure,90825,FINANCE & CORPORATE SERVICES
705.00,Althams,Neighbourhoods,Environmental Health,Community Safety,1598,Projects & Activities,29/10/2018,Supplies & Services,88276,NEIGHBOURHOODS
704.00,Site Rescue (Leeds Office),Communities,Community Development,Arts,1550,Projects & Activities,14/12/2018,Supplies & Services,91916,COMMUNITIES
702.00,City Hygiene Services Ltd,Communities,Community Development,Facilities Team,4714,Laundry,20/12/2018,Supplies & Services,91470,COMMUNITIES
700.03,Water Plus,Communities,Community Development,Rushcliffe Country Park,1375,Water Charges,12/10/2018,Premises Related Expenditure,89800,COMMUNITIES
700.00,Dkn Decorators Ltd,Transformation,Property Services,Arena Civic Centre,4718,Responsive Works - Buildings,12/10/2018,Premises Related Expenditure,89323,TRANSFORMATION
700.00,Institute Of Licensing,Neighbourhoods,Environmental Health,Licences - General,1029,Training Expenses,16/11/2018,Employee Related Expenditure,90071,NEIGHBOURHOODS
700.00,Sutton Bonington Hq Committee,Finance & Corporate Services,Democratic Services,Members Services,1000,Grants,04/12/2018,Supplies & Services,91407,FINANCE & CORPORATE SERVICES
693.52,Vip System Limited,Neighbourhoods,Environmental Health,Hackney Carriage/Private Hire,1031,Other Equipment/Materials,19/11/2018,Supplies & Services,90917,NEIGHBOURHOODS
688.17,Reach Publishing Services Limited,Communities,Planning & Growth,Development Control,1161,Advertising,07/12/2018,Supplies & Services,91697,COMMUNITIES
685.00,Access Doors Ltd,Communities,Community Development,West Park,8994,Planned Maintenance Recharge,07/12/2018,Supplies & Services,91285,COMMUNITIES
684.60,Cotgrave Town Council,Transformation,Economic Regeneration,Cotgrave Precinct,1885,Grounds Maintenance,23/11/2018,Premises Related Expenditure,90857,TRANSFORMATION
680.00,The Royal British Legion Poppy Appeal,Finance & Corporate Services,Democratic Services,Members Services,1000,Other Miscellaneous Expenses,09/11/2018,Supplies & Services,90867,FINANCE & CORPORATE SERVICES
675.00,Doreen Kelly,Neighbourhoods,Strategic Housing,Homeless B&B,1110,Housing-Emergency Accommodn,07/12/2018,Supplies & Services,91557,NEIGHBOURHOODS
675.00,Medigold Health Consultancy Ltd,Neighbourhoods,Environmental Health,Licences - General,1029,Legal & Professional Services,18/12/2018,Supplies & Services,88648,NEIGHBOURHOODS
673.32,Pinnacle Professional Services Limited,Capital Expenditure,Transformation & Innovation,Multi Service Centre,0348,Legal & Professional Services,29/10/2018,Supplies & Services,90582,CAPITAL
670.46,Crown Security Solutions Ltd,Transformation,Economic Regeneration,West Bridgford Town Centre,1875,Publicity & Promotion,07/12/2018,Supplies & Services,91626,TRANSFORMATION
664.13,Royal Mail Group Ltd,Transformation,Bsu,Central Mail,4871,Postages,03/10/2018,Supplies & Services,89358,TRANSFORMATION
660.00,Fred Brown Car Repairs Limited,Neighbourhoods,Environmental Health,Hackney Carriage/Private Hire,1031,Legal & Professional Services,07/12/2018,Supplies & Services,91630,NEIGHBOURHOODS
660.00,Wellbeing Clinic Ltd,Transformation,Human Resources,Human Resources,4709,Occupational Health,15/10/2018,Employee Related Expenditure,89692,TRANSFORMATION
656.06,Mick Dutton & Son Limited,Communities,Community Development,Rushcliffe Country Park,1375,Other Equipment/Materials,29/10/2018,Supplies & Services,90175,COMMUNITIES
654.65,Service Level Management Ltd,Transformation,Bsu,Central Mail,4871,Postages,19/11/2018,Supplies & Services,90849,TRANSFORMATION
651.25,Maltby & Company,Communities,Community Development,Parks & Playing Fields-Gen,8910,Responsive Works - Buildings,02/11/2018,Premises Related Expenditure,90184,COMMUNITIES
650.00,Belinda Poon,Communities,Community Development,Arts,1550,Projects & Activities,29/10/2018,Supplies & Services,90554,COMMUNITIES
650.00,Howard Ward Associates Ltd,Transformation,Property Services,Land Holdings,1884,Legal & Professional Services,04/12/2018,Supplies & Services,91182,TRANSFORMATION
645.32,Service Level Management Ltd,Transformation,Bsu,Central Mail,4871,Postages,20/12/2018,Supplies & Services,91738,TRANSFORMATION
640.71,Water Plus,Communities,Community Development,Gamston Community Hall,8992,Water Charges,19/11/2018,Premises Related Expenditure,90827,COMMUNITIES
637.00,Assoc Of Electoral Admin,Assets,Current Assets,Parliamentary Election,7103,Training Expenses,09/11/2018,Employee Related Expenditure,90843,FINANCE & CORPORATE SERVICES
636.47,Nottinghamshire County Council,Neighbourhoods,Leisure Contracts & Car Parks,Leisure Management Contract,1795,Grounds Maintenance,04/12/2018,Premises Related Expenditure,91605,FINANCE & CORPORATE SERVICES
636.31,Service Level Management Ltd,Transformation,Bsu,Central Mail,4871,Postages,04/12/2018,Supplies & Services,90851,TRANSFORMATION
633.00,Serco Leisure Operating Ltd,Communities,Local Development Framework,Development Plans,1232,Hire Of Rooms,19/11/2018,Supplies & Services,90563,COMMUNITIES
630.36,Xerox (Uk) Limited,Transformation,Ict,Photocopiers,5017,Rental & Copy Charges,19/10/2018,Supplies & Services,90004,TRANSFORMATION
626.61,Carole Crookes,Communities,Local Development Framework,Development Plans,1232,Other Miscellaneous Expenses,11/12/2018,Supplies & Services,90420,COMMUNITIES
618.77,Reach Publishing Services Limited,Communities,Planning & Growth,Development Control,1161,Advertising,11/12/2018,Supplies & Services,91071,COMMUNITIES
608.96,Electoral Reform Services,Finance & Corporate Services,Democratic Services,Electoral Registration,1026,External Printing,14/12/2018,Supplies & Services,91706,FINANCE & CORPORATE SERVICES
607.16,The South Wolds Academy And Sixth Form,Neighbourhoods,Leisure Contracts & Car Parks,Leisure Management Contract,1795,Gas,29/10/2018,Premises Related Expenditure,90236,FINANCE & CORPORATE SERVICES
603.25,British Gas Business,Neighbourhoods,Waste & Fleet Management,Abbey Road Depot,4001,Electricity,16/10/2018,Premises Related Expenditure,89750,NEIGHBOURHOODS
602.00,Central Fire Systems Ltd,Transformation,Property Services,The Point,1886,Service Maintenance Contracts,20/12/2018,Premises Related Expenditure,91913,TRANSFORMATION
600.00,Bentley Project Management,Capital Expenditure,Transformation & Innovation,Fairham Pastures Development,0372,Legal & Professional Services,19/10/2018,Supplies & Services,89965,CAPITAL
600.00,Idox Software Limited,Transformation,Ict,It Rechargeable Costs,4722,Software,19/11/2018,Supplies & Services,90649,TRANSFORMATION
600.00,Nottingham City Council,Finance & Corporate Services,Financial Services,Corporate Management,4895,Legal & Professional Services,20/12/2018,Supplies & Services,90347,FINANCE & CORPORATE SERVICES
595.00,Brooks Jordan Training,Neighbourhoods,Environmental Health,Health And Safety,1059,Training Expenses,07/12/2018,Employee Related Expenditure,91203,NEIGHBOURHOODS
593.25,Reach Publishing Services Limited,Communities,Planning & Growth,Development Control,1161,Advertising,23/10/2018,Supplies & Services,90309,COMMUNITIES
593.25,Reach Publishing Services Limited,Communities,Planning & Growth,Development Control,1161,Advertising,09/11/2018,Supplies & Services,90672,COMMUNITIES
593.25,Reach Publishing Services Limited,Communities,Planning & Growth,Development Control,1161,Advertising,09/11/2018,Supplies & Services,90673,COMMUNITIES
589.11,Straw & Pearce,Capital Expenditure,Transformation & Innovation,Cotgrave Phase 2,0387,Legal & Professional Services,07/11/2018,Supplies & Services,90556,CAPITAL
585.05,Corona Energy Retail 3 Ltd,Neighbourhoods,Waste & Fleet Management,Abbey Road Depot,4001,Gas,18/12/2018,Premises Related Expenditure,91100,NEIGHBOURHOODS
585.00,Streetwise Environmental Ltd,Capital Expenditure,Transformation & Innovation,Cotgrave Masterplan,0303,Contractors-Third Party,26/11/2018,Third Party Payments,90944,CAPITAL
584.50,Showsec International Limited,Transformation,Economic Regeneration,West Bridgford Town Centre,1875,Publicity & Promotion,14/12/2018,Supplies & Services,91943,TRANSFORMATION
581.05,Service Level Management Ltd,Transformation,Bsu,Central Mail,4871,Postages,16/11/2018,Supplies & Services,90848,TRANSFORMATION
577.90,Bt Telephone Payment Centre,Transformation,Ict,Telephones,4870,Telephone Rental,12/10/2018,Supplies & Services,87662,TRANSFORMATION
577.90,Bt Telephone Payment Centre,Transformation,Ict,Telephones,4870,Telephone Rental,12/10/2018,Supplies & Services,89942,TRANSFORMATION
572.86,Maltby & Company,Communities,Community Development,Bridgford Park,8927,Responsive Works - Buildings,26/11/2018,Premises Related Expenditure,90939,COMMUNITIES
570.14,The South Wolds Academy And Sixth Form,Neighbourhoods,Leisure Contracts & Car Parks,Leisure Management Contract,1795,Water Charges,21/11/2018,Premises Related Expenditure,89990,FINANCE & CORPORATE SERVICES
570.00,Fred Brown Car Repairs Limited,Neighbourhoods,Environmental Health,Hackney Carriage/Private Hire,1031,Legal & Professional Services,03/10/2018,Supplies & Services,89896,NEIGHBOURHOODS
570.00,Park Avenue,Communities,Planning & Growth,Development Control,1161,Agency Staff,20/12/2018,Employee Related Expenditure,92121,COMMUNITIES
569.80,Electoral Reform Services,Finance & Corporate Services,Democratic Services,Electoral Registration,1026,External Printing,29/10/2018,Supplies & Services,90418,FINANCE & CORPORATE SERVICES
565.00,Nuthall Electrical Services Ltd,Capital Expenditure,Transformation & Innovation,Arena Car Park,0336,Contractors-Third Party,16/11/2018,Third Party Payments,90641,CAPITAL
562.00,Saxondale Kennels,Neighbourhoods,Environmental Health,Dog Control,1057,Legal & Professional Services,19/11/2018,Supplies & Services,90826,NEIGHBOURHOODS
561.78,Reach Publishing Services Limited,Communities,Planning & Growth,Development Control,1161,Advertising,12/10/2018,Supplies & Services,89971,COMMUNITIES
559.35,Reach Publishing Services Limited,Communities,Planning & Growth,Development Control,1161,Advertising,07/12/2018,Supplies & Services,91507,COMMUNITIES
557.11,The South Wolds Academy And Sixth Form,Neighbourhoods,Leisure Contracts & Car Parks,Leisure Management Contract,1795,Water Charges,26/11/2018,Premises Related Expenditure,91276,FINANCE & CORPORATE SERVICES
557.00,Mr D Henshaw,Neighbourhoods,Environmental Health,Housing Standards,1129,Licences,02/11/2018,Income,90528,NEIGHBOURHOODS
556.00,East Midlands Markets And Events Ltd,Transformation,Property Services,Bingham Market Stalls,1880,Legal & Professional Services,20/12/2018,Supplies & Services,91938,TRANSFORMATION
554.51,Dell Corporation Ltd,Capital Expenditure,Transformation & Innovation,Technical Infrastructure,0603,Computer Hardware,15/10/2018,Supplies & Services,89960,CAPITAL
553.00,South Notts Ringing Group,Communities,Community Development,Environmental Promotion,1590,Grants,07/12/2018,Supplies & Services,91331,COMMUNITIES
546.25,4imprint,Transformation,Property Services,Arena Civic Centre,4718,Other Equipment/Materials,19/10/2018,Supplies & Services,89992,TRANSFORMATION
543.19,Ee Ltd (Airtime),Transformation,Ict,Telephones,4870,Mobiles,19/11/2018,Supplies & Services,90925,TRANSFORMATION
542.10,Atherton Signs And Installations,Neighbourhoods,Leisure Contracts & Car Parks,Leisure Management Contract,1795,Responsive Works - Buildings,09/11/2018,Premises Related Expenditure,90203,FINANCE & CORPORATE SERVICES
542.10,Atherton Signs And Installations,Neighbourhoods,Leisure Contracts & Car Parks,Leisure Management Contract,1795,Responsive Works - Buildings,20/12/2018,Premises Related Expenditure,92125,FINANCE & CORPORATE SERVICES
537.86,Streetwise Environmental Ltd,Capital Expenditure,Neighbourhoods,Arena Development,0415,Contractors-Third Party,28/11/2018,Third Party Payments,85271,CAPITAL
535.00,Bridgfordian Ltd,Communities,Community Development,Community Development,1581,Other Miscellaneous Expenses,04/12/2018,Supplies & Services,91624,COMMUNITIES
532.00,Baker Consultants Ltd,Capital Expenditure,Transformation & Innovation,Cotgrave Masterplan,0303,Legal & Professional Services,19/11/2018,Supplies & Services,90692,CAPITAL
532.00,Temperature Control Limited,Transformation,Property Services,Arena Civic Centre,4718,Responsive Works - Buildings,20/12/2018,Premises Related Expenditure,91871,TRANSFORMATION
520.00,Streetwise Environmental Ltd,Finance & Corporate Services,Democratic Services,Members Services,1000,Grants,04/12/2018,Supplies & Services,91175,FINANCE & CORPORATE SERVICES
519.80,Reach Publishing Services Limited,Communities,Planning & Growth,Development Control,1161,Advertising,12/10/2018,Supplies & Services,88887,COMMUNITIES
513.00,A R Signs Ltd,Finance & Corporate Services,"Performance, Repn & Comms",Performance And Reputation,4710,External Printing,14/12/2018,Supplies & Services,91694,FINANCE & CORPORATE SERVICES
513.00,Ferret Information Systems,Transformation,Ict,It Rechargeable Costs,4722,Maintenance Contracts - S&S,18/12/2018,Supplies & Services,91908,TRANSFORMATION
510.00,Euromunicipal Ltd,Neighbourhoods,Waste & Fleet Management,Waste Collection,8403,Hire Of Transport/Plant,07/12/2018,Transport Related Expenditure,90856,NEIGHBOURHOODS
510.00,Nottingham City Council,Communities,Community Development,Tour Of Britain 2018,1583,Projects & Activities,09/11/2018,Supplies & Services,90243,COMMUNITIES
507.00,Hiring Wizard,Transformation,Property Services,Civic Centre Building,4719,Employee Advertising,09/11/2018,Employee Related Expenditure,90577,TRANSFORMATION
506.75,Civica Uk Ltd,Neighbourhoods,Strategic Housing,Home Alarms,1137,Partnership Workings,02/11/2018,Supplies & Services,90722,NEIGHBOURHOODS
505.20,Water Plus,Communities,Community Development,Alford Road,8940,Water Charges,19/11/2018,Premises Related Expenditure,90889,COMMUNITIES
504.60,Showsec International Limited,Communities,Community Development,Arts,1550,Projects & Activities,02/11/2018,Supplies & Services,90470,COMMUNITIES
498.34,Reach Publishing Services Limited,Communities,Planning & Growth,Development Control,1161,Advertising,21/11/2018,Supplies & Services,91292,COMMUNITIES
498.32,Reach Publishing Services Limited,Communities,Planning & Growth,Conservation,1171,Advertising,21/11/2018,Supplies & Services,91292,COMMUNITIES
490.00,Dta Electrical,Neighbourhoods,Waste & Fleet Management,Abbey Road Depot,4001,Responsive Works - Buildings,29/10/2018,Premises Related Expenditure,90252,NEIGHBOURHOODS
433.92,Reach Publishing Services Limited,Communities,Planning & Growth,Conservation,1171,Advertising,07/12/2018,Supplies & Services,91698,COMMUNITIES
415.75,Clearwater Technology Ltd,Transformation,Property Services,Arena Civic Centre,4718,Service Maintenance Contracts,19/11/2018,Premises Related Expenditure,90916,TRANSFORMATION
355.95,Reach Publishing Services Limited,Communities,Planning & Growth,Development Control,1161,Advertising,15/10/2018,Supplies & Services,90073,COMMUNITIES
347.50,Clearwater Technology Ltd,Communities,Community Development,Gresham,8950,Service Maintenance Contracts,19/11/2018,Premises Related Expenditure,90916,COMMUNITIES
325.44,Reach Publishing Services Limited,Communities,Planning & Growth,Development Control,1161,Advertising,07/12/2018,Supplies & Services,91698,COMMUNITIES
305.00,Perrys East Midlands Ltd,Neighbourhoods,Waste & Fleet Management,Fleet,8600,Licences - General,19/10/2018,Transport Related Expenditure,89984,NEIGHBOURHOODS
237.30,Reach Publishing Services Limited,Communities,Planning & Growth,Conservation,1171,Advertising,15/10/2018,Supplies & Services,90073,COMMUNITIES
225.00,Clearwater Technology Ltd,Neighbourhoods,Waste & Fleet Management,Abbey Road Depot,4001,Service Maintenance Contracts,19/11/2018,Premises Related Expenditure,90916,NEIGHBOURHOODS
223.74,Reach Publishing Services Limited,Communities,Planning & Growth,Conservation,1171,Advertising,07/12/2018,Supplies & Services,91507,COMMUNITIES
213.75,Clearwater Technology Ltd,Communities,Community Development,Alford Road,8940,Service Maintenance Contracts,19/11/2018,Premises Related Expenditure,90916,COMMUNITIES
213.75,Clearwater Technology Ltd,Neighbourhoods,Strategic Housing,Hostel Hound Lodge,1111,Service Maintenance Contracts,19/11/2018,Premises Related Expenditure,90916,NEIGHBOURHOODS
191.25,Clearwater Technology Ltd,Communities,Community Development,West Park,8994,Service Maintenance Contracts,19/11/2018,Premises Related Expenditure,90916,COMMUNITIES
181.92,Reach Publishing Services Limited,Communities,Planning & Growth,Conservation,1171,Advertising,02/11/2018,Supplies & Services,90530,COMMUNITIES
146.75,Clearwater Technology Ltd,Communities,Community Development,Lutterell Hall,8990,Service Maintenance Contracts,19/11/2018,Premises Related Expenditure,90916,COMMUNITIES
135.00,Clearwater Technology Ltd,Communities,Community Development,Rushcliffe Country Park,1375,Service Maintenance Contracts,19/11/2018,Premises Related Expenditure,90916,COMMUNITIES
123.75,Clearwater Technology Ltd,Communities,Community Development,Sir Julien Cahn Pavilion,8993,Service Maintenance Contracts,19/11/2018,Premises Related Expenditure,90916,COMMUNITIES
112.50,Clearwater Technology Ltd,Communities,Community Development,Gamston Community Hall,8992,Service Maintenance Contracts,19/11/2018,Premises Related Expenditure,90916,COMMUNITIES
107.35,Reach Publishing Services Limited,Communities,Planning & Growth,Conservation,1171,Advertising,15/10/2018,Supplies & Services,89825,COMMUNITIES
93.62,Reach Publishing Services Limited,Communities,Planning & Growth,Conservation,1171,Advertising,12/10/2018,Supplies & Services,89971,COMMUNITIES
93.13,Reach Publishing Services Limited,Communities,Planning & Growth,Conservation,1171,Advertising,11/12/2018,Supplies & Services,91071,COMMUNITIES
75.00,Dta Electrical,Communities,Community Development,Lutterell Hall,8990,Responsive Works - Buildings,29/10/2018,Premises Related Expenditure,90252,COMMUNITIES
45.00,Dta Electrical,Communities,Community Development,Gresham,8950,Responsive Works - Buildings,29/10/2018,Premises Related Expenditure,90252,COMMUNITIES
45.00,Dta Electrical,Transformation,Property Services,Arena Civic Centre,4718,Responsive Works - Buildings,29/10/2018,Premises Related Expenditure,90252,TRANSFORMATION
5.57,Bt Telephone Payment Centre,Transformation,Ict,Telephones,4870,Telephone Call Charges,12/10/2018,Supplies & Services,89942,TRANSFORMATION
5.02,Bt Telephone Payment Centre,Transformation,Ict,Telephones,4870,Telephone Call Charges,12/10/2018,Supplies & Services,87662,TRANSFORMATION
-123.44,Carole Crookes,Liabilities,Current Liabilities,Creditors Control Account,5101,Sub Contractors Sums Deducted,11/12/2018,Sub Contractors Sums Deducted,90420,FINANCE & CORPORATE SERVICES
-281.60,Carole Crookes,Liabilities,Current Liabilities,Creditors Control Account,5101,Sub Contractors Sums Deducted,11/12/2018,Sub Contractors Sums Deducted,90868,FINANCE & CORPORATE SERVICES
-718.08,Carole Crookes,Liabilities,Current Liabilities,Creditors Control Account,5101,Sub Contractors Sums Deducted,11/12/2018,Sub Contractors Sums Deducted,91764,FINANCE & CORPORATE SERVICES
"28,081,935.85",,,,,,,,,,
